Workbook

Sheet 대덕구인구현황
A1: 대전광역시 대덕구 주민등록 인구현황
AA2: [ 2023. 5. 31.기준 ]
A3: 동 별 | B3: 인 구 및 세 대 수 | I3: 10대 이하 (0세 ~ 19세) | L3: 20대 | O3: 30대 | R3: 40대 | U3: 50대 | X3: 60대 | AA3: 70대 이상 | AD3: 65세 이상
B4: 계 | C4: 전월계 | D4: 증감 | E4: 증감비 (%) | F4: 남 | G4: 여 | H4: 세대수 | I4: 계 | J4: 전월계 | K4: 증감 | L4: 계 | M4: 전월계 | N4: 증감 | O4: 계 | P4: 전월계 | Q4: 증감 | R4: 계 | S4: 전월계 | T4: 증감 | U4: 계 | V4: 전월계 | W4: 증감 | X4: 계 | Y4: 전월계 | Z4: 증감 | AA4: 계 | AB4: 전월계 | AC4: 증감 | AD4: 계 | AE4: 전월계 | AF4: 증감
A5: 계 | B5: =SUM(F5:G5) -> 171021 | C5: =SUM(C6:C17) -> 171372 | D5: =SUM(D6:D17) -> -351 | E5: =(D5/B5)*100 -> -0.2052379532 | F5: =SUM(F6:F17) -> 86991 | G5: 84030 | H5: 80268 | I5: 24233 | J5: 24390 | K5: -157 | L5: =SUM(L6:L17) -> 22047 | M5: =SUM(M6:M17) -> 22175 | N5: =SUM(N6:N17) -> -128 | O5: 19451 | P5: 19497 | Q5: -46 | R5: 24308 | S5: 24488 | T5: -180 | U5: =SUM(U6:U17) -> 32728 | V5: 32681 | W5: 47 | X5: 28082 | Y5: 28026 | Z5: 56 | AA5: 20172 | AB5: 20115 | AC5: 57 | AD5: =SUM(AD6:AD17) -> 31969 | AE5: =SUM(AE6:AE17) -> 31859 | AF5: =SUM(AF6:AF17) -> 110
A6: 오 정 동 | B6: 13999 | C6: 14001 | D6: =B6-C6 -> -2 | E6: -0.01428673477 | F6: 7370 | G6: 6629 | H6: 7541 | I6: 1453 | J6: 1455 | K6: =I6-J6 -> -2 | L6: 2161 | M6: 2154 | N6: =L6-M6 -> 7 | O6: 1374 | P6: 1383 | Q6: =O6-P6 -> -9 | R6: 1698 | S6: 1715 | T6: =R6-S6 -> -17 | U6: 2483 | V6: 2480 | W6: =U6-V6 -> 3 | X6: 2742 | Y6: 2739 | Z6: =X6-Y6 -> 3 | AA6: 2088 | AB6: 2075 | AC6: =AA6-AB6 -> 13 | AD6: 3298 | AE6: 3278 | AF6: =AD6-AE6 -> 20
A7: 대 화 동 | B7: 6575 | C7: 6594 | D7: -19 | E7: -0.288973384 | F7: 3457 | G7: 3118 | H7: 3413 | I7: 628 | J7: 627 | K7: =I7-J7 -> 1 | L7: 683 | M7: 691 | N7: -8 | O7: 715 | P7: 719 | Q7: =O7-P7 -> -4 | R7: 934 | S7: 944 | T7: =R7-S7 -> -10 | U7: 1255 | V7: 1251 | W7: =U7-V7 -> 4 | X7: 1294 | Y7: 1292 | Z7: =X7-Y7 -> 2 | AA7: 1066 | AB7: 1070 | AC7: -4 | AD7: 1661 | AE7: 1664 | AF7: -3
A8: 회 덕 동 | B8: 11607 | C8: 11658 | D8: -51 | E8: -0.4393900233 | F8: 5945 | G8: 5662 | H8: 5489 | I8: 1348 | J8: 1358 | K8: -10 | L8: 1195 | M8: 1214 | N8: -19 | O8: 1139 | P8: 1142 | Q8: -3 | R8: 1454 | S8: 1457 | T8: -3 | U8: 2172 | V8: 2190 | W8: -18 | X8: 2371 | Y8: 2365 | Z8: 6 | AA8: 1928 | AB8: 1932 | AC8: -4 | AD8: 2977 | AE8: 2971 | AF8: 6
A9: 비 래 동 | B9: 15546 | C9: 15570 | D9: -24 | E9: -0.1543805481 | F9: 7728 | G9: 7818 | H9: 6946 | I9: 2136 | J9: 2153 | K9: -17 | L9: 1946 | M9: 1946 | N9: 0 | O9: 1462 | P9: 1470 | Q9: -8 | R9: 2167 | S9: 2187 | T9: -20 | U9: 3084 | V9: 3073 | W9: 11 | X9: 2767 | Y9: 2766 | Z9: 1 | AA9: 1984 | AB9: 1975 | AC9: 9 | AD9: 3194 | AE9: 3184 | AF9: 10
A10: 송 촌 동 | B10: 26399 | C10: 26439 | D10: -40 | E10: -0.1515208909 | F10: 13071 | G10: 13328 | H10: 10407 | I10: 4995 | J10: 5027 | K10: -32 | L10: 3710 | M10: 3729 | N10: -19 | O10: 2482 | P10: 2491 | Q10: -9 | R10: 4253 | S10: 4286 | T10: -33 | U10: 5693 | V10: 5671 | W10: 22 | X10: 3281 | Y10: 3255 | Z10: 26 | AA10: 1985 | AB10: 1980 | AC10: 5 | AD10: 3164 | AE10: 3140 | AF10: 24
A11: 중 리 동 | B11: 18889 | C11: 18966 | D11: -77 | E11: -0.4076446609 | F11: 9836 | G11: 9053 | H11: 10440 | I11: 2114 | J11: 2124 | K11: -10 | L11: 2790 | M11: 2834 | N11: -44 | O11: 2117 | P11: 2115 | Q11: 2 | R11: 2689 | S11: 2724 | T11: -35 | U11: 3656 | V11: 3646 | W11: 10 | X11: 3309 | Y11: 3311 | Z11: -2 | AA11: 2214 | AB11: 2212 | AC11: 2 | AD11: 3646 | AE11: 3641 | AF11: 5
A12: 법 1 동 | B12: 12555 | C12: 12617 | D12: -62 | E12: -0.4938271605 | F12: 5875 | G12: 6680 | H12: 5883 | I12: 1741 | J12: 1775 | K12: -34 | L12: 1400 | M12: 1411 | N12: -11 | O12: 1545 | P12: 1549 | Q12: -4 | R12: 1586 | S12: 1602 | T12: -16 | U12: 2369 | V12: 2375 | W12: -6 | X12: 2185 | Y12: 2186 | Z12: -1 | AA12: 1729 | AB12: 1719 | AC12: 10 | AD12: 2657 | AE12: 2650 | AF12: 7
A13: 법 2 동 | B13: 15299 | C13: 15331 | D13: -32 | E13: -0.2091639976 | F13: 7450 | G13: 7849 | H13: 6769 | I13: 2090 | J13: 2102 | K13: -12 | L13: 1833 | M13: 1838 | N13: -5 | O13: 1374 | P13: 1386 | Q13: -12 | R13: 1969 | S13: 1979 | T13: -10 | U13: 3044 | V13: 3053 | W13: -9 | X13: 2945 | Y13: 2940 | Z13: 5 | AA13: 2044 | AB13: 2033 | AC13: 11 | AD13: 3250 | AE13: 3225 | AF13: 25
A14: 신 탄 진 | B14: 14552 | C14: 14579 | D14: -27 | E14: -0.1855415063 | F14: 7531 | G14: 7021 | H14: 6979 | I14: 1910 | J14: 1916 | K14: -6 | L14: 1738 | M14: 1757 | N14: -19 | O14: 2044 | P14: 2040 | Q14: 4 | R14: 1951 | S14: 1974 | T14: -23 | U14: 2708 | V14: 2694 | W14: 14 | X14: 2375 | Y14: 2375 | Z14: 0 | AA14: 1826 | AB14: 1823 | AC14: 3 | AD14: 2876 | AE14: 2867 | AF14: 9
A15: 석 봉 동 | B15: 16165 | C15: 16140 | D15: 25 | E15: 0.1546551191 | F15: 8270 | G15: 7895 | H15: 6588 | I15: 3359 | J15: 3366 | K15: -7 | L15: 1739 | M15: 1740 | N15: -1 | O15: 2612 | P15: 2612 | Q15: 0 | R15: 2744 | S15: 2732 | T15: 12 | U15: 2572 | V15: 2570 | W15: 2 | X15: 1988 | Y15: 1969 | Z15: 19 | AA15: 1151 | AB15: 1151 | AC15: 0 | AD15: 1917 | AE15: 1911 | AF15: 6
A16: 덕 암 동 | B16: 13226 | C16: 13263 | D16: -37 | E16: -0.2797520036 | F16: 7083 | G16: 6143 | H16: 6640 | I16: 1595 | J16: 1610 | K16: -15 | L16: 1938 | M16: 1945 | N16: -7 | O16: 1658 | P16: 1661 | Q16: -3 | R16: 1814 | S16: 1828 | T16: -14 | U16: 2566 | V16: 2564 | W16: 2 | X16: 2004 | Y16: 2014 | Z16: -10 | AA16: 1651 | AB16: 1641 | AC16: 10 | AD16: 2504 | AE16: 2504 | AF16: 0
A17: 목 상 동 | B17: 6209 | C17: 6214 | D17: -5 | E17: -0.08052826542 | F17: 3375 | G17: 2834 | H17: 3173 | I17: 864 | J17: 877 | K17: -13 | L17: 914 | M17: 916 | N17: -2 | O17: 929 | P17: 929 | Q17: 0 | R17: 1049 | S17: 1060 | T17: -11 | U17: 1126 | V17: 1114 | W17: 12 | X17: 821 | Y17: 814 | Z17: 7 | AA17: 506 | AB17: 504 | AC17: 2 | AD17: 825 | AE17: 824 | AF17: 1

Sheet 연령별인구현황(2023.5.)
B2: 연령별(만)인구현황(기관별)
B4: 행정기관 : 대전광역시 대덕구 | M4: 출력일자 : | N4: 2023.06.01
B5: 통계년월 : 2023년 05월 현재
B6: 연령 | D6: 대덕구 | G6: 오정동 | J6: 대화동 | M6: 회덕동 | P6: 비래동 | S6: 송촌동 | V6: 중리동 | Y6: 법1동 | AB6: 법2동 | AE6: 신탄진동 | AH6: 석봉동 | AK6: 덕암동 | AN6: 목상동
D7: 인구수 | E7: 구성비 | F7: 성비 | G7: 인구수 | H7: 구성비 | I7: 성비 | J7: 인구수 | K7: 구성비 | L7: 성비 | M7: 인구수 | N7: 구성비 | O7: 성비 | P7: 인구수 | Q7: 구성비 | R7: 성비 | S7: 인구수 | T7: 구성비 | U7: 성비 | V7: 인구수 | W7: 구성비 | X7: 성비 | Y7: 인구수 | Z7: 구성비 | AA7: 성비 | AB7: 인구수 | AC7: 구성비 | AD7: 성비 | AE7: 인구수 | AF7: 구성비 | AG7: 성비 | AH7: 인구수 | AI7: 구성비 | AJ7: 성비 | AK7: 인구수 | AL7: 구성비 | AM7: 성비 | AN7: 인구수 | AO7: 구성비 | AP7: 성비
B8: 합 계 | C8: 계 | D8: 171021 | E8: 100 | F8: 103.52 | G8: 13999 | H8: 100 | I8: 111.18 | J8: 6575 | K8: 100 | L8: 110.87 | M8: 11607 | N8: 100 | O8: 105 | P8: 15546 | Q8: 100 | R8: 98.85 | S8: 26399 | T8: 100 | U8: 98.07 | V8: 18889 | W8: 100 | X8: 108.65 | Y8: 12555 | Z8: 100 | AA8: 87.95 | AB8: 15299 | AC8: 100 | AD8: 94.92 | AE8: 14552 | AF8: 100 | AG8: 107.26 | AH8: 16165 | AI8: 100 | AJ8: 104.75 | AK8: 13226 | AL8: 100 | AM8: 115.3 | AN8: 6209 | AO8: 100 | AP8: 119.09
C9: 남 | D9: 86991 | E9: 100 | G9: 7370 | H9: 100 | J9: 3457 | K9: 100 | M9: 5945 | N9: 100 | P9: 7728 | Q9: 100 | S9: 13071 | T9: 100 | V9: 9836 | W9: 100 | Y9: 5875 | Z9: 100 | AB9: 7450 | AC9: 100 | AE9: 7531 | AF9: 100 | AH9: 8270 | AI9: 100 | AK9: 7083 | AL9: 100 | AN9: 3375 | AO9: 100
C10: 여 | D10: 84030 | E10: 100 | G10: 6629 | H10: 100 | J10: 3118 | K10: 100 | M10: 5662 | N10: 100 | P10: 7818 | Q10: 100 | S10: 13328 | T10: 100 | V10: 9053 | W10: 100 | Y10: 6680 | Z10: 100 | AB10: 7849 | AC10: 100 | AE10: 7021 | AF10: 100 | AH10: 7895 | AI10: 100 | AK10: 6143 | AL10: 100 | AN10: 2834 | AO10: 100
B11: 0세 | C11: 계 | D11: 813 | E11: 0.48 | F11: 122.13 | G11: 34 | H11: 0.24 | I11: 161.54 | J11: 21 | K11: 0.32 | L11: 162.5 | M11: 36 | N11: 0.31 | O11: 200 | P11: 54 | Q11: 0.35 | R11: 116 | S11: 97 | T11: 0.37 | U11: 94 | V11: 56 | W11: 0.3 | X11: 143.48 | Y11: 81 | Z11: 0.65 | AA11: 170 | AB11: 69 | AC11: 0.45 | AD11: 137.93 | AE11: 116 | AF11: 0.8 | AG11: 118.87 | AH11: 153 | AI11: 0.95 | AJ11: 101.32 | AK11: 63 | AL11: 0.48 | AM11: 117.24 | AN11: 33 | AO11: 0.53 | AP11: 83.33
C12: 남 | D12: 447 | E12: 0.51 | G12: 21 | H12: 0.28 | J12: 13 | K12: 0.38 | M12: 24 | N12: 0.4 | P12: 29 | Q12: 0.38 | S12: 47 | T12: 0.36 | V12: 33 | W12: 0.34 | Y12: 51 | Z12: 0.87 | AB12: 40 | AC12: 0.54 | AE12: 63 | AF12: 0.84 | AH12: 77 | AI12: 0.93 | AK12: 34 | AL12: 0.48 | AN12: 15 | AO12: 0.44
C13: 여 | D13: 366 | E13: 0.44 | G13: 13 | H13: 0.2 | J13: 8 | K13: 0.26 | M13: 12 | N13: 0.21 | P13: 25 | Q13: 0.32 | S13: 50 | T13: 0.38 | V13: 23 | W13: 0.25 | Y13: 30 | Z13: 0.45 | AB13: 29 | AC13: 0.37 | AE13: 53 | AF13: 0.75 | AH13: 76 | AI13: 0.96 | AK13: 29 | AL13: 0.47 | AN13: 18 | AO13: 0.64
B14: 1세 | C14: 계 | D14: 761 | E14: 0.44 | F14: 99.74 | G14: 50 | H14: 0.36 | I14: 127.27 | J14: 12 | K14: 0.18 | L14: 50 | M14: 38 | N14: 0.33 | O14: 58.33 | P14: 50 | Q14: 0.32 | R14: 150 | S14: 122 | T14: 0.46 | U14: 84.85 | V14: 59 | W14: 0.31 | X14: 126.92 | Y14: 81 | Z14: 0.65 | AA14: 102.5 | AB14: 46 | AC14: 0.3 | AD14: 155.56 | AE14: 86 | AF14: 0.59 | AG14: 104.76 | AH14: 141 | AI14: 0.87 | AJ14: 83.12 | AK14: 50 | AL14: 0.38 | AM14: 117.39 | AN14: 26 | AO14: 0.42 | AP14: 73.33
C15: 남 | D15: 380 | E15: 0.44 | G15: 28 | H15: 0.38 | J15: 4 | K15: 0.12 | M15: 14 | N15: 0.24 | P15: 30 | Q15: 0.39 | S15: 56 | T15: 0.43 | V15: 33 | W15: 0.34 | Y15: 41 | Z15: 0.7 | AB15: 28 | AC15: 0.38 | AE15: 44 | AF15: 0.58 | AH15: 64 | AI15: 0.77 | AK15: 27 | AL15: 0.38 | AN15: 11 | AO15: 0.33
C16: 여 | D16: 381 | E16: 0.45 | G16: 22 | H16: 0.33 | J16: 8 | K16: 0.26 | M16: 24 | N16: 0.42 | P16: 20 | Q16: 0.26 | S16: 66 | T16: 0.5 | V16: 26 | W16: 0.29 | Y16: 40 | Z16: 0.6 | AB16: 18 | AC16: 0.23 | AE16: 42 | AF16: 0.6 | AH16: 77 | AI16: 0.98 | AK16: 23 | AL16: 0.37 | AN16: 15 | AO16: 0.53
B17: 2세 | C17: 계 | D17: 752 | E17: 0.44 | F17: 114.25 | G17: 40 | H17: 0.29 | I17: 110.53 | J17: 20 | K17: 0.3 | L17: 100 | M17: 38 | N17: 0.33 | O17: 171.43 | P17: 54 | Q17: 0.35 | R17: 86.21 | S17: 113 | T17: 0.43 | U17: 98.25 | V17: 58 | W17: 0.31 | X17: 114.81 | Y17: 81 | Z17: 0.65 | AA17: 97.56 | AB17: 47 | AC17: 0.31 | AD17: 213.33 | AE17: 81 | AF17: 0.56 | AG17: 88.37 | AH17: 134 | AI17: 0.83 | AJ17: 135.09 | AK17: 61 | AL17: 0.46 | AM17: 110.34 | AN17: 25 | AO17: 0.4 | AP17: 150
C18: 남 | D18: 401 | E18: 0.46 | G18: 21 | H18: 0.28 | J18: 10 | K18: 0.29 | M18: 24 | N18: 0.4 | P18: 25 | Q18: 0.32 | S18: 56 | T18: 0.43 | V18: 31 | W18: 0.32 | Y18: 40 | Z18: 0.68 | AB18: 32 | AC18: 0.43 | AE18: 38 | AF18: 0.5 | AH18: 77 | AI18: 0.93 | AK18: 32 | AL18: 0.45 | AN18: 15 | AO18: 0.44
C19: 여 | D19: 351 | E19: 0.42 | G19: 19 | H19: 0.29 | J19: 10 | K19: 0.32 | M19: 14 | N19: 0.25 | P19: 29 | Q19: 0.37 | S19: 57 | T19: 0.43 | V19: 27 | W19: 0.3 | Y19: 41 | Z19: 0.61 | AB19: 15 | AC19: 0.19 | AE19: 43 | AF19: 0.61 | AH19: 57 | AI19: 0.72 | AK19: 29 | AL19: 0.47 | AN19: 10 | AO19: 0.35
B20: 3세 | C20: 계 | D20: 794 | E20: 0.46 | F20: 109.5 | G20: 38 | H20: 0.27 | I20: 153.33 | J20: 10 | K20: 0.15 | L20: 100 | M20: 42 | N20: 0.36 | O20: 90.91 | P20: 52 | Q20: 0.33 | R20: 160 | S20: 129 | T20: 0.49 | U20: 122.41 | V20: 59 | W20: 0.31 | X20: 110.71 | Y20: 79 | Z20: 0.63 | AA20: 83.72 | AB20: 61 | AC20: 0.4 | AD20: 205 | AE20: 70 | AF20: 0.48 | AG20: 89.19 | AH20: 156 | AI20: 0.97 | AJ20: 92.59 | AK20: 66 | AL20: 0.5 | AM20: 94.12 | AN20: 32 | AO20: 0.52 | AP20: 100
C21: 남 | D21: 415 | E21: 0.48 | G21: 23 | H21: 0.31 | J21: 5 | K21: 0.14 | M21: 20 | N21: 0.34 | P21: 32 | Q21: 0.41 | S21: 71 | T21: 0.54 | V21: 31 | W21: 0.32 | Y21: 36 | Z21: 0.61 | AB21: 41 | AC21: 0.55 | AE21: 33 | AF21: 0.44 | AH21: 75 | AI21: 0.91 | AK21: 32 | AL21: 0.45 | AN21: 16 | AO21: 0.47
C22: 여 | D22: 379 | E22: 0.45 | G22: 15 | H22: 0.23 | J22: 5 | K22: 0.16 | M22: 22 | N22: 0.39 | P22: 20 | Q22: 0.26 | S22: 58 | T22: 0.44 | V22: 28 | W22: 0.31 | Y22: 43 | Z22: 0.64 | AB22: 20 | AC22: 0.25 | AE22: 37 | AF22: 0.53 | AH22: 81 | AI22: 1.03 | AK22: 34 | AL22: 0.55 | AN22: 16 | AO22: 0.56
B23: 4세 | C23: 계 | D23: 864 | E23: 0.51 | F23: 91.57 | G23: 49 | H23: 0.35 | I23: 75 | J23: 14 | K23: 0.21 | L23: 100 | M23: 54 | N23: 0.47 | O23: 92.86 | P23: 66 | Q23: 0.42 | R23: 135.71 | S23: 130 | T23: 0.49 | U23: 68.83 | V23: 77 | W23: 0.41 | X23: 75 | Y23: 76 | Z23: 0.61 | AA23: 85.37 | AB23: 87 | AC23: 0.57 | AD23: 61.11 | AE23: 72 | AF23: 0.49 | AG23: 118.18 | AH23: 147 | AI23: 0.91 | AJ23: 126.15 | AK23: 60 | AL23: 0.45 | AM23: 100 | AN23: 32 | AO23: 0.52 | AP23: 100
C24: 남 | D24: 413 | E24: 0.47 | G24: 21 | H24: 0.28 | J24: 7 | K24: 0.2 | M24: 26 | N24: 0.44 | P24: 38 | Q24: 0.49 | S24: 53 | T24: 0.41 | V24: 33 | W24: 0.34 | Y24: 35 | Z24: 0.6 | AB24: 33 | AC24: 0.44 | AE24: 39 | AF24: 0.52 | AH24: 82 | AI24: 0.99 | AK24: 30 | AL24: 0.42 | AN24: 16 | AO24: 0.47
C25: 여 | D25: 451 | E25: 0.54 | G25: 28 | H25: 0.42 | J25: 7 | K25: 0.22 | M25: 28 | N25: 0.49 | P25: 28 | Q25: 0.36 | S25: 77 | T25: 0.58 | V25: 44 | W25: 0.49 | Y25: 41 | Z25: 0.61 | AB25: 54 | AC25: 0.69 | AE25: 33 | AF25: 0.47 | AH25: 65 | AI25: 0.82 | AK25: 30 | AL25: 0.49 | AN25: 16 | AO25: 0.56
B26: 5세 | C26: 계 | D26: 896 | E26: 0.52 | F26: 100.9 | G26: 48 | H26: 0.34 | I26: 128.57 | J26: 22 | K26: 0.33 | L26: 120 | M26: 53 | N26: 0.46 | O26: 96.3 | P26: 80 | Q26: 0.51 | R26: 116.22 | S26: 165 | T26: 0.63 | U26: 101.22 | V26: 55 | W26: 0.29 | X26: 111.54 | Y26: 66 | Z26: 0.53 | AA26: 100 | AB26: 77 | AC26: 0.5 | AD26: 83.33 | AE26: 81 | AF26: 0.56 | AG26: 84.09 | AH26: 177 | AI26: 1.09 | AJ26: 101.14 | AK26: 48 | AL26: 0.36 | AM26: 92 | AN26: 24 | AO26: 0.39 | AP26: 118.18
C27: 남 | D27: 450 | E27: 0.52 | G27: 27 | H27: 0.37 | J27: 12 | K27: 0.35 | M27: 26 | N27: 0.44 | P27: 43 | Q27: 0.56 | S27: 83 | T27: 0.63 | V27: 29 | W27: 0.29 | Y27: 33 | Z27: 0.56 | AB27: 35 | AC27: 0.47 | AE27: 37 | AF27: 0.49 | AH27: 89 | AI27: 1.08 | AK27: 23 | AL27: 0.32 | AN27: 13 | AO27: 0.39
C28: 여 | D28: 446 | E28: 0.53 | G28: 21 | H28: 0.32 | J28: 10 | K28: 0.32 | M28: 27 | N28: 0.48 | P28: 37 | Q28: 0.47 | S28: 82 | T28: 0.62 | V28: 26 | W28: 0.29 | Y28: 33 | Z28: 0.49 | AB28: 42 | AC28: 0.54 | AE28: 44 | AF28: 0.63 | AH28: 88 | AI28: 1.11 | AK28: 25 | AL28: 0.41 | AN28: 11 | AO28: 0.39
B29: 6세 | C29: 계 | D29: 1037 | E29: 0.61 | F29: 90.28 | G29: 51 | H29: 0.36 | I29: 64.52 | J29: 13 | K29: 0.2 | L29: 62.5 | M29: 55 | N29: 0.47 | O29: 77.42 | P29: 92 | Q29: 0.59 | R29: 91.67 | S29: 176 | T29: 0.67 | U29: 93.41 | V29: 99 | W29: 0.52 | X29: 83.33 | Y29: 77 | Z29: 0.61 | AA29: 60.42 | AB29: 86 | AC29: 0.56 | AD29: 104.76 | AE29: 92 | AF29: 0.63 | AG29: 113.95 | AH29: 197 | AI29: 1.22 | AJ29: 98.99 | AK29: 65 | AL29: 0.49 | AM29: 116.67 | AN29: 34 | AO29: 0.55 | AP29: 70
C30: 남 | D30: 492 | E30: 0.57 | G30: 20 | H30: 0.27 | J30: 5 | K30: 0.14 | M30: 24 | N30: 0.4 | P30: 44 | Q30: 0.57 | S30: 85 | T30: 0.65 | V30: 45 | W30: 0.46 | Y30: 29 | Z30: 0.49 | AB30: 44 | AC30: 0.59 | AE30: 49 | AF30: 0.65 | AH30: 98 | AI30: 1.19 | AK30: 35 | AL30: 0.49 | AN30: 14 | AO30: 0.41
C31: 여 | D31: 545 | E31: 0.65 | G31: 31 | H31: 0.47 | J31: 8 | K31: 0.26 | M31: 31 | N31: 0.55 | P31: 48 | Q31: 0.61 | S31: 91 | T31: 0.68 | V31: 54 | W31: 0.6 | Y31: 48 | Z31: 0.72 | AB31: 42 | AC31: 0.54 | AE31: 43 | AF31: 0.61 | AH31: 99 | AI31: 1.25 | AK31: 30 | AL31: 0.49 | AN31: 20 | AO31: 0.71
B32: 7세 | C32: 계 | D32: 1112 | E32: 0.65 | F32: 100.36 | G32: 58 | H32: 0.41 | I32: 70.59 | J32: 31 | K32: 0.47 | L32: 210 | M32: 58 | N32: 0.5 | O32: 123.08 | P32: 84 | Q32: 0.54 | R32: 95.35 | S32: 218 | T32: 0.83 | U32: 91.23 | V32: 77 | W32: 0.41 | X32: 92.5 | Y32: 85 | Z32: 0.68 | AA32: 107.32 | AB32: 109 | AC32: 0.71 | AD32: 105.66 | AE32: 90 | AF32: 0.62 | AG32: 87.5 | AH32: 209 | AI32: 1.29 | AJ32: 99.05 | AK32: 55 | AL32: 0.42 | AM32: 111.54 | AN32: 38 | AO32: 0.61 | AP32: 153.33
C33: 남 | D33: 557 | E33: 0.64 | G33: 24 | H33: 0.33 | J33: 21 | K33: 0.61 | M33: 32 | N33: 0.54 | P33: 41 | Q33: 0.53 | S33: 104 | T33: 0.8 | V33: 37 | W33: 0.38 | Y33: 44 | Z33: 0.75 | AB33: 56 | AC33: 0.75 | AE33: 42 | AF33: 0.56 | AH33: 104 | AI33: 1.26 | AK33: 29 | AL33: 0.41 | AN33: 23 | AO33: 0.68
C34: 여 | D34: 555 | E34: 0.66 | G34: 34 | H34: 0.51 | J34: 10 | K34: 0.32 | M34: 26 | N34: 0.46 | P34: 43 | Q34: 0.55 | S34: 114 | T34: 0.86 | V34: 40 | W34: 0.44 | Y34: 41 | Z34: 0.61 | AB34: 53 | AC34: 0.68 | AE34: 48 | AF34: 0.68 | AH34: 105 | AI34: 1.33 | AK34: 26 | AL34: 0.42 | AN34: 15 | AO34: 0.53
B35: 8세 | C35: 계 | D35: 1193 | E35: 0.7 | F35: 116.52 | G35: 63 | H35: 0.45 | I35: 142.31 | J35: 26 | K35: 0.4 | L35: 116.67 | M35: 67 | N35: 0.58 | O35: 109.38 | P35: 107 | Q35: 0.69 | R35: 91.07 | S35: 229 | T35: 0.87 | U35: 118.1 | V35: 96 | W35: 0.51 | X35: 118.18 | Y35: 72 | Z35: 0.57 | AA35: 100 | AB35: 97 | AC35: 0.63 | AD35: 110.87 | AE35: 93 | AF35: 0.64 | AG35: 97.87 | AH35: 234 | AI35: 1.45 | AJ35: 134 | AK35: 59 | AL35: 0.45 | AM35: 136 | AN35: 50 | AO35: 0.81 | AP35: 127.27
C36: 남 | D36: 642 | E36: 0.74 | G36: 37 | H36: 0.5 | J36: 14 | K36: 0.4 | M36: 35 | N36: 0.59 | P36: 51 | Q36: 0.66 | S36: 124 | T36: 0.95 | V36: 52 | W36: 0.53 | Y36: 36 | Z36: 0.61 | AB36: 51 | AC36: 0.68 | AE36: 46 | AF36: 0.61 | AH36: 134 | AI36: 1.62 | AK36: 34 | AL36: 0.48 | AN36: 28 | AO36: 0.83
C37: 여 | D37: 551 | E37: 0.66 | G37: 26 | H37: 0.39 | J37: 12 | K37: 0.38 | M37: 32 | N37: 0.57 | P37: 56 | Q37: 0.72 | S37: 105 | T37: 0.79 | V37: 44 | W37: 0.49 | Y37: 36 | Z37: 0.54 | AB37: 46 | AC37: 0.59 | AE37: 47 | AF37: 0.67 | AH37: 100 | AI37: 1.27 | AK37: 25 | AL37: 0.41 | AN37: 22 | AO37: 0.78
B38: 9세 | C38: 계 | D38: 1246 | E38: 0.73 | F38: 109.76 | G38: 54 | H38: 0.39 | I38: 125 | J38: 29 | K38: 0.44 | L38: 141.67 | M38: 66 | N38: 0.57 | O38: 106.25 | P38: 94 | Q38: 0.6 | R38: 129.27 | S38: 254 | T38: 0.96 | U38: 100 | V38: 92 | W38: 0.49 | X38: 142.11 | Y38: 92 | Z38: 0.73 | AA38: 84 | AB38: 107 | AC38: 0.7 | AD38: 122.92 | AE38: 96 | AF38: 0.66 | AG38: 95.92 | AH38: 243 | AI38: 1.5 | AJ38: 105.93 | AK38: 80 | AL38: 0.6 | AM38: 116.22 | AN38: 39 | AO38: 0.63 | AP38: 116.67
C39: 남 | D39: 652 | E39: 0.75 | G39: 30 | H39: 0.41 | J39: 17 | K39: 0.49 | M39: 34 | N39: 0.57 | P39: 53 | Q39: 0.69 | S39: 127 | T39: 0.97 | V39: 54 | W39: 0.55 | Y39: 42 | Z39: 0.71 | AB39: 59 | AC39: 0.79 | AE39: 47 | AF39: 0.62 | AH39: 125 | AI39: 1.51 | AK39: 43 | AL39: 0.61 | AN39: 21 | AO39: 0.62
C40: 여 | D40: 594 | E40: 0.71 | G40: 24 | H40: 0.36 | J40: 12 | K40: 0.38 | M40: 32 | N40: 0.57 | P40: 41 | Q40: 0.52 | S40: 127 | T40: 0.95 | V40: 38 | W40: 0.42 | Y40: 50 | Z40: 0.75 | AB40: 48 | AC40: 0.61 | AE40: 49 | AF40: 0.7 | AH40: 118 | AI40: 1.49 | AK40: 37 | AL40: 0.6 | AN40: 18 | AO40: 0.64
B41: 10세 | C41: 계 | D41: 1298 | E41: 0.76 | F41: 100 | G41: 81 | H41: 0.58 | I41: 76.09 | J41: 40 | K41: 0.61 | L41: 100 | M41: 67 | N41: 0.58 | O41: 103.03 | P41: 99 | Q41: 0.64 | R41: 70.69 | S41: 279 | T41: 1.06 | U41: 99.29 | V41: 114 | W41: 0.6 | X41: 128 | Y41: 86 | Z41: 0.68 | AA41: 104.76 | AB41: 105 | AC41: 0.69 | AD41: 138.64 | AE41: 95 | AF41: 0.65 | AG41: 102.13 | AH41: 205 | AI41: 1.27 | AJ41: 99.03 | AK41: 72 | AL41: 0.54 | AM41: 100 | AN41: 55 | AO41: 0.89 | AP41: 83.33
C42: 남 | D42: 649 | E42: 0.75 | G42: 35 | H42: 0.47 | J42: 20 | K42: 0.58 | M42: 34 | N42: 0.57 | P42: 41 | Q42: 0.53 | S42: 139 | T42: 1.06 | V42: 64 | W42: 0.65 | Y42: 44 | Z42: 0.75 | AB42: 61 | AC42: 0.82 | AE42: 48 | AF42: 0.64 | AH42: 102 | AI42: 1.23 | AK42: 36 | AL42: 0.51 | AN42: 25 | AO42: 0.74
C43: 여 | D43: 649 | E43: 0.77 | G43: 46 | H43: 0.69 | J43: 20 | K43: 0.64 | M43: 33 | N43: 0.58 | P43: 58 | Q43: 0.74 | S43: 140 | T43: 1.05 | V43: 50 | W43: 0.55 | Y43: 42 | Z43: 0.63 | AB43: 44 | AC43: 0.56 | AE43: 47 | AF43: 0.67 | AH43: 103 | AI43: 1.3 | AK43: 36 | AL43: 0.59 | AN43: 30 | AO43: 1.06
B44: 11세 | C44: 계 | D44: 1378 | E44: 0.81 | F44: 105.67 | G44: 86 | H44: 0.61 | I44: 132.43 | J44: 36 | K44: 0.55 | L44: 89.47 | M44: 89 | N44: 0.77 | O44: 111.9 | P44: 116 | Q44: 0.75 | R44: 100 | S44: 299 | T44: 1.13 | U44: 107.64 | V44: 122 | W44: 0.65 | X44: 87.69 | Y44: 89 | Z44: 0.71 | AA44: 89.36 | AB44: 108 | AC44: 0.71 | AD44: 100 | AE44: 102 | AF44: 0.7 | AG44: 104 | AH44: 197 | AI44: 1.22 | AJ44: 116.48 | AK44: 88 | AL44: 0.67 | AM44: 131.58 | AN44: 46 | AO44: 0.74 | AP44: 84
C45: 남 | D45: 708 | E45: 0.81 | G45: 49 | H45: 0.66 | J45: 17 | K45: 0.49 | M45: 47 | N45: 0.79 | P45: 58 | Q45: 0.75 | S45: 155 | T45: 1.19 | V45: 57 | W45: 0.58 | Y45: 42 | Z45: 0.71 | AB45: 54 | AC45: 0.72 | AE45: 52 | AF45: 0.69 | AH45: 106 | AI45: 1.28 | AK45: 50 | AL45: 0.71 | AN45: 21 | AO45: 0.62
C46: 여 | D46: 670 | E46: 0.8 | G46: 37 | H46: 0.56 | J46: 19 | K46: 0.61 | M46: 42 | N46: 0.74 | P46: 58 | Q46: 0.74 | S46: 144 | T46: 1.08 | V46: 65 | W46: 0.72 | Y46: 47 | Z46: 0.7 | AB46: 54 | AC46: 0.69 | AE46: 50 | AF46: 0.71 | AH46: 91 | AI46: 1.15 | AK46: 38 | AL46: 0.62 | AN46: 25 | AO46: 0.88
B47: 12세 | C47: 계 | D47: 1399 | E47: 0.82 | F47: 108.49 | G47: 86 | H47: 0.61 | I47: 160.61 | J47: 41 | K47: 0.62 | L47: 156.25 | M47: 78 | N47: 0.67 | O47: 160 | P47: 119 | Q47: 0.77 | R47: 98.33 | S47: 307 | T47: 1.16 | U47: 104.67 | V47: 124 | W47: 0.66 | X47: 110.17 | Y47: 84 | Z47: 0.67 | AA47: 100 | AB47: 118 | AC47: 0.77 | AD47: 131.37 | AE47: 101 | AF47: 0.69 | AG47: 98.04 | AH47: 195 | AI47: 1.21 | AJ47: 105.26 | AK47: 88 | AL47: 0.67 | AM47: 79.59 | AN47: 58 | AO47: 0.93 | AP47: 65.71
C48: 남 | D48: 728 | E48: 0.84 | G48: 53 | H48: 0.72 | J48: 25 | K48: 0.72 | M48: 48 | N48: 0.81 | P48: 59 | Q48: 0.76 | S48: 157 | T48: 1.2 | V48: 65 | W48: 0.66 | Y48: 42 | Z48: 0.71 | AB48: 67 | AC48: 0.9 | AE48: 50 | AF48: 0.66 | AH48: 100 | AI48: 1.21 | AK48: 39 | AL48: 0.55 | AN48: 23 | AO48: 0.68
C49: 여 | D49: 671 | E49: 0.8 | G49: 33 | H49: 0.5 | J49: 16 | K49: 0.51 | M49: 30 | N49: 0.53 | P49: 60 | Q49: 0.77 | S49: 150 | T49: 1.13 | V49: 59 | W49: 0.65 | Y49: 42 | Z49: 0.63 | AB49: 51 | AC49: 0.65 | AE49: 51 | AF49: 0.73 | AH49: 95 | AI49: 1.2 | AK49: 49 | AL49: 0.8 | AN49: 35 | AO49: 1.24
B50: 13세 | C50: 계 | D50: 1371 | E50: 0.8 | F50: 111.25 | G50: 98 | H50: 0.7 | I50: 92.16 | J50: 39 | K50: 0.59 | L50: 116.67 | M50: 80 | N50: 0.69 | O50: 105.13 | P50: 123 | Q50: 0.79 | R50: 95.24 | S50: 319 | T50: 1.21 | U50: 117.01 | V50: 127 | W50: 0.67 | X50: 108.2 | Y50: 90 | Z50: 0.72 | AA50: 136.84 | AB50: 123 | AC50: 0.8 | AD50: 141.18 | AE50: 90 | AF50: 0.62 | AG50: 91.49 | AH50: 146 | AI50: 0.9 | AJ50: 108.57 | AK50: 89 | AL50: 0.67 | AM50: 117.07 | AN50: 47 | AO50: 0.76 | AP50: 104.35
C51: 남 | D51: 722 | E51: 0.83 | G51: 47 | H51: 0.64 | J51: 21 | K51: 0.61 | M51: 41 | N51: 0.69 | P51: 60 | Q51: 0.78 | S51: 172 | T51: 1.32 | V51: 66 | W51: 0.67 | Y51: 52 | Z51: 0.89 | AB51: 72 | AC51: 0.97 | AE51: 43 | AF51: 0.57 | AH51: 76 | AI51: 0.92 | AK51: 48 | AL51: 0.68 | AN51: 24 | AO51: 0.71
C52: 여 | D52: 649 | E52: 0.77 | G52: 51 | H52: 0.77 | J52: 18 | K52: 0.58 | M52: 39 | N52: 0.69 | P52: 63 | Q52: 0.81 | S52: 147 | T52: 1.1 | V52: 61 | W52: 0.67 | Y52: 38 | Z52: 0.57 | AB52: 51 | AC52: 0.65 | AE52: 47 | AF52: 0.67 | AH52: 70 | AI52: 0.89 | AK52: 41 | AL52: 0.67 | AN52: 23 | AO52: 0.81
B53: 14세 | C53: 계 | D53: 1452 | E53: 0.85 | F53: 102.51 | G53: 84 | H53: 0.6 | I53: 154.55 | J53: 48 | K53: 0.73 | L53: 108.7 | M53: 101 | N53: 0.87 | O53: 102 | P53: 146 | Q53: 0.94 | R53: 124.62 | S53: 328 | T53: 1.24 | U53: 85.31 | V53: 133 | W53: 0.7 | X53: 133.33 | Y53: 99 | Z53: 0.79 | AA53: 62.3 | AB53: 97 | AC53: 0.63 | AD53: 115.56 | AE53: 84 | AF53: 0.58 | AG53: 100 | AH53: 161 | AI53: 1 | AJ53: 117.57 | AK53: 101 | AL53: 0.76 | AM53: 94.23 | AN53: 70 | AO53: 1.13 | AP53: 84.21
C54: 남 | D54: 735 | E54: 0.84 | G54: 51 | H54: 0.69 | J54: 25 | K54: 0.72 | M54: 51 | N54: 0.86 | P54: 81 | Q54: 1.05 | S54: 151 | T54: 1.16 | V54: 76 | W54: 0.77 | Y54: 38 | Z54: 0.65 | AB54: 52 | AC54: 0.7 | AE54: 42 | AF54: 0.56 | AH54: 87 | AI54: 1.05 | AK54: 49 | AL54: 0.69 | AN54: 32 | AO54: 0.95
C55: 여 | D55: 717 | E55: 0.85 | G55: 33 | H55: 0.5 | J55: 23 | K55: 0.74 | M55: 50 | N55: 0.88 | P55: 65 | Q55: 0.83 | S55: 177 | T55: 1.33 | V55: 57 | W55: 0.63 | Y55: 61 | Z55: 0.91 | AB55: 45 | AC55: 0.57 | AE55: 42 | AF55: 0.6 | AH55: 74 | AI55: 0.94 | AK55: 52 | AL55: 0.85 | AN55: 38 | AO55: 1.34
B56: 15세 | C56: 계 | D56: 1546 | E56: 0.9 | F56: 108.92 | G56: 107 | H56: 0.76 | I56: 105.77 | J56: 55 | K56: 0.84 | L56: 150 | M56: 73 | N56: 0.63 | O56: 143.33 | P56: 172 | Q56: 1.11 | R56: 107.23 | S56: 338 | T56: 1.28 | U56: 90.96 | V56: 137 | W56: 0.73 | X56: 120.97 | Y56: 106 | Z56: 0.84 | AA56: 152.38 | AB56: 147 | AC56: 0.96 | AD56: 93.42 | AE56: 108 | AF56: 0.74 | AG56: 103.77 | AH56: 129 | AI56: 0.8 | AJ56: 111.48 | AK56: 112 | AL56: 0.85 | AM56: 119.61 | AN56: 62 | AO56: 1 | AP56: 100
C57: 남 | D57: 806 | E57: 0.93 | G57: 55 | H57: 0.75 | J57: 33 | K57: 0.95 | M57: 43 | N57: 0.72 | P57: 89 | Q57: 1.15 | S57: 161 | T57: 1.23 | V57: 75 | W57: 0.76 | Y57: 64 | Z57: 1.09 | AB57: 71 | AC57: 0.95 | AE57: 55 | AF57: 0.73 | AH57: 68 | AI57: 0.82 | AK57: 61 | AL57: 0.86 | AN57: 31 | AO57: 0.92
C58: 여 | D58: 740 | E58: 0.88 | G58: 52 | H58: 0.78 | J58: 22 | K58: 0.71 | M58: 30 | N58: 0.53 | P58: 83 | Q58: 1.06 | S58: 177 | T58: 1.33 | V58: 62 | W58: 0.68 | Y58: 42 | Z58: 0.63 | AB58: 76 | AC58: 0.97 | AE58: 53 | AF58: 0.75 | AH58: 61 | AI58: 0.77 | AK58: 51 | AL58: 0.83 | AN58: 31 | AO58: 1.09
B59: 16세 | C59: 계 | D59: 1534 | E59: 0.9 | F59: 114.25 | G59: 77 | H59: 0.55 | I59: 133.33 | J59: 40 | K59: 0.61 | L59: 110.53 | M59: 92 | N59: 0.79 | O59: 113.95 | P59: 147 | Q59: 0.95 | R59: 133.33 | S59: 401 | T59: 1.52 | U59: 107.77 | V59: 143 | W59: 0.76 | X59: 88.16 | Y59: 90 | Z59: 0.72 | AA59: 104.55 | AB59: 139 | AC59: 0.91 | AD59: 113.85 | AE59: 121 | AF59: 0.83 | AG59: 210.26 | AH59: 138 | AI59: 0.85 | AJ59: 94.37 | AK59: 98 | AL59: 0.74 | AM59: 92.16 | AN59: 48 | AO59: 0.77 | AP59: 152.63
C60: 남 | D60: 818 | E60: 0.94 | G60: 44 | H60: 0.6 | J60: 21 | K60: 0.61 | M60: 49 | N60: 0.82 | P60: 84 | Q60: 1.09 | S60: 208 | T60: 1.59 | V60: 67 | W60: 0.68 | Y60: 46 | Z60: 0.78 | AB60: 74 | AC60: 0.99 | AE60: 82 | AF60: 1.09 | AH60: 67 | AI60: 0.81 | AK60: 47 | AL60: 0.66 | AN60: 29 | AO60: 0.86
C61: 여 | D61: 716 | E61: 0.85 | G61: 33 | H61: 0.5 | J61: 19 | K61: 0.61 | M61: 43 | N61: 0.76 | P61: 63 | Q61: 0.81 | S61: 193 | T61: 1.45 | V61: 76 | W61: 0.84 | Y61: 44 | Z61: 0.66 | AB61: 65 | AC61: 0.83 | AE61: 39 | AF61: 0.56 | AH61: 71 | AI61: 0.9 | AK61: 51 | AL61: 0.83 | AN61: 19 | AO61: 0.67
B62: 17세 | C62: 계 | D62: 1475 | E62: 0.86 | F62: 107.45 | G62: 75 | H62: 0.54 | I62: 74.42 | J62: 37 | K62: 0.56 | L62: 105.56 | M62: 88 | N62: 0.76 | O62: 131.58 | P62: 145 | Q62: 0.93 | R62: 126.56 | S62: 353 | T62: 1.34 | U62: 99.44 | V62: 146 | W62: 0.77 | X62: 117.91 | Y62: 111 | Z62: 0.88 | AA62: 109.43 | AB62: 141 | AC62: 0.92 | AD62: 95.83 | AE62: 101 | AF62: 0.69 | AG62: 146.34 | AH62: 130 | AI62: 0.8 | AJ62: 109.68 | AK62: 106 | AL62: 0.8 | AM62: 96.3 | AN62: 42 | AO62: 0.68 | AP62: 90.91
C63: 남 | D63: 764 | E63: 0.88 | G63: 32 | H63: 0.43 | J63: 19 | K63: 0.55 | M63: 50 | N63: 0.84 | P63: 81 | Q63: 1.05 | S63: 176 | T63: 1.35 | V63: 79 | W63: 0.8 | Y63: 58 | Z63: 0.99 | AB63: 69 | AC63: 0.93 | AE63: 60 | AF63: 0.8 | AH63: 68 | AI63: 0.82 | AK63: 52 | AL63: 0.73 | AN63: 20 | AO63: 0.59
C64: 여 | D64: 711 | E64: 0.85 | G64: 43 | H64: 0.65 | J64: 18 | K64: 0.58 | M64: 38 | N64: 0.67 | P64: 64 | Q64: 0.82 | S64: 177 | T64: 1.33 | V64: 67 | W64: 0.74 | Y64: 53 | Z64: 0.79 | AB64: 72 | AC64: 0.92 | AE64: 41 | AF64: 0.58 | AH64: 62 | AI64: 0.79 | AK64: 54 | AL64: 0.88 | AN64: 22 | AO64: 0.78
B65: 18세 | C65: 계 | D65: 1608 | E65: 0.94 | F65: 121.18 | G65: 101 | H65: 0.72 | I65: 158.97 | J65: 50 | K65: 0.76 | L65: 150 | M65: 102 | N65: 0.88 | O65: 88.89 | P65: 156 | Q65: 1 | R65: 110.81 | S65: 353 | T65: 1.34 | U65: 132.24 | V65: 170 | W65: 0.9 | X65: 142.86 | Y65: 102 | Z65: 0.81 | AA65: 88.89 | AB65: 164 | AC65: 1.07 | AD65: 105 | AE65: 113 | AF65: 0.78 | AG65: 135.42 | AH65: 130 | AI65: 0.8 | AJ65: 120.34 | AK65: 118 | AL65: 0.89 | AM65: 114.55 | AN65: 49 | AO65: 0.79 | AP65: 122.73
C66: 남 | D66: 881 | E66: 1.01 | G66: 62 | H66: 0.84 | J66: 30 | K66: 0.87 | M66: 48 | N66: 0.81 | P66: 82 | Q66: 1.06 | S66: 201 | T66: 1.54 | V66: 100 | W66: 1.02 | Y66: 48 | Z66: 0.82 | AB66: 84 | AC66: 1.13 | AE66: 65 | AF66: 0.86 | AH66: 71 | AI66: 0.86 | AK66: 63 | AL66: 0.89 | AN66: 27 | AO66: 0.8
C67: 여 | D67: 727 | E67: 0.87 | G67: 39 | H67: 0.59 | J67: 20 | K67: 0.64 | M67: 54 | N67: 0.95 | P67: 74 | Q67: 0.95 | S67: 152 | T67: 1.14 | V67: 70 | W67: 0.77 | Y67: 54 | Z67: 0.81 | AB67: 80 | AC67: 1.02 | AE67: 48 | AF67: 0.68 | AH67: 59 | AI67: 0.75 | AK67: 55 | AL67: 0.9 | AN67: 22 | AO67: 0.78
B68: 19세 | C68: 계 | D68: 1704 | E68: 1 | F68: 111.15 | G68: 173 | H68: 1.24 | I68: 74.75 | J68: 44 | K68: 0.67 | L68: 238.46 | M68: 71 | N68: 0.61 | O68: 136.67 | P68: 180 | Q68: 1.16 | R68: 119.51 | S68: 385 | T68: 1.46 | U68: 133.33 | V68: 170 | W68: 0.9 | X68: 93.18 | Y68: 94 | Z68: 0.75 | AA68: 88 | AB68: 162 | AC68: 1.06 | AD68: 125 | AE68: 118 | AF68: 0.81 | AG68: 93.44 | AH68: 137 | AI68: 0.85 | AJ68: 104.48 | AK68: 116 | AL68: 0.88 | AM68: 118.87 | AN68: 54 | AO68: 0.87 | AP68: 100
C69: 남 | D69: 897 | E69: 1.03 | G69: 74 | H69: 1 | J69: 31 | K69: 0.9 | M69: 41 | N69: 0.69 | P69: 98 | Q69: 1.27 | S69: 220 | T69: 1.68 | V69: 82 | W69: 0.83 | Y69: 44 | Z69: 0.75 | AB69: 90 | AC69: 1.21 | AE69: 57 | AF69: 0.76 | AH69: 70 | AI69: 0.85 | AK69: 63 | AL69: 0.89 | AN69: 27 | AO69: 0.8
C70: 여 | D70: 807 | E70: 0.96 | G70: 99 | H70: 1.49 | J70: 13 | K70: 0.42 | M70: 30 | N70: 0.53 | P70: 82 | Q70: 1.05 | S70: 165 | T70: 1.24 | V70: 88 | W70: 0.97 | Y70: 50 | Z70: 0.75 | AB70: 72 | AC70: 0.92 | AE70: 61 | AF70: 0.87 | AH70: 67 | AI70: 0.85 | AK70: 53 | AL70: 0.86 | AN70: 27 | AO70: 0.95
B71: 20세 | C71: 계 | D71: 1750 | E71: 1.02 | F71: 107.59 | G71: 189 | H71: 1.35 | I71: 71.82 | J71: 53 | K71: 0.81 | L71: 112 | M71: 90 | N71: 0.78 | O71: 114.29 | P71: 185 | Q71: 1.19 | R71: 120.24 | S71: 338 | T71: 1.28 | U71: 122.37 | V71: 211 | W71: 1.12 | X71: 90.09 | Y71: 95 | Z71: 0.76 | AA71: 97.92 | AB71: 154 | AC71: 1.01 | AD71: 105.33 | AE71: 135 | AF71: 0.93 | AG71: 125 | AH71: 121 | AI71: 0.75 | AJ71: 112.28 | AK71: 143 | AL71: 1.08 | AM71: 120 | AN71: 36 | AO71: 0.58 | AP71: 157.14
C72: 남 | D72: 907 | E72: 1.04 | G72: 79 | H72: 1.07 | J72: 28 | K72: 0.81 | M72: 48 | N72: 0.81 | P72: 101 | Q72: 1.31 | S72: 186 | T72: 1.42 | V72: 100 | W72: 1.02 | Y72: 47 | Z72: 0.8 | AB72: 79 | AC72: 1.06 | AE72: 75 | AF72: 1 | AH72: 64 | AI72: 0.77 | AK72: 78 | AL72: 1.1 | AN72: 22 | AO72: 0.65
C73: 여 | D73: 843 | E73: 1 | G73: 110 | H73: 1.66 | J73: 25 | K73: 0.8 | M73: 42 | N73: 0.74 | P73: 84 | Q73: 1.07 | S73: 152 | T73: 1.14 | V73: 111 | W73: 1.23 | Y73: 48 | Z73: 0.72 | AB73: 75 | AC73: 0.96 | AE73: 60 | AF73: 0.85 | AH73: 57 | AI73: 0.72 | AK73: 65 | AL73: 1.06 | AN73: 14 | AO73: 0.49
B74: 21세 | C74: 계 | D74: 2011 | E74: 1.18 | F74: 109.04 | G74: 227 | H74: 1.62 | I74: 73.28 | J74: 54 | K74: 0.82 | L74: 145.45 | M74: 109 | N74: 0.94 | O74: 81.67 | P74: 191 | Q74: 1.23 | R74: 92.93 | S74: 407 | T74: 1.54 | U74: 113.09 | V74: 215 | W74: 1.14 | X74: 138.89 | Y74: 107 | Z74: 0.85 | AA74: 94.55 | AB74: 179 | AC74: 1.17 | AD74: 138.67 | AE74: 151 | AF74: 1.04 | AG74: 135.94 | AH74: 138 | AI74: 0.85 | AJ74: 142.11 | AK74: 163 | AL74: 1.23 | AM74: 91.76 | AN74: 70 | AO74: 1.13 | AP74: 112.12
C75: 남 | D75: 1049 | E75: 1.21 | G75: 96 | H75: 1.3 | J75: 32 | K75: 0.93 | M75: 49 | N75: 0.82 | P75: 92 | Q75: 1.19 | S75: 216 | T75: 1.65 | V75: 125 | W75: 1.27 | Y75: 52 | Z75: 0.89 | AB75: 104 | AC75: 1.4 | AE75: 87 | AF75: 1.16 | AH75: 81 | AI75: 0.98 | AK75: 78 | AL75: 1.1 | AN75: 37 | AO75: 1.1
C76: 여 | D76: 962 | E76: 1.14 | G76: 131 | H76: 1.98 | J76: 22 | K76: 0.71 | M76: 60 | N76: 1.06 | P76: 99 | Q76: 1.27 | S76: 191 | T76: 1.43 | V76: 90 | W76: 0.99 | Y76: 55 | Z76: 0.82 | AB76: 75 | AC76: 0.96 | AE76: 64 | AF76: 0.91 | AH76: 57 | AI76: 0.72 | AK76: 85 | AL76: 1.38 | AN76: 33 | AO76: 1.16
B77: 22세 | C77: 계 | D77: 2184 | E77: 1.28 | F77: 112.45 | G77: 262 | H77: 1.87 | I77: 89.86 | J77: 62 | K77: 0.94 | L77: 100 | M77: 109 | N77: 0.94 | O77: 113.73 | P77: 203 | Q77: 1.31 | R77: 118.28 | S77: 412 | T77: 1.56 | U77: 121.51 | V77: 270 | W77: 1.43 | X77: 97.08 | Y77: 133 | Z77: 1.06 | AA77: 150.94 | AB77: 223 | AC77: 1.46 | AD77: 108.41 | AE77: 145 | AF77: 1 | AG77: 93.33 | AH77: 139 | AI77: 0.86 | AJ77: 183.67 | AK77: 161 | AL77: 1.22 | AM77: 120.55 | AN77: 65 | AO77: 1.05 | AP77: 85.71
C78: 남 | D78: 1156 | E78: 1.33 | G78: 124 | H78: 1.68 | J78: 31 | K78: 0.9 | M78: 58 | N78: 0.98 | P78: 110 | Q78: 1.42 | S78: 226 | T78: 1.73 | V78: 133 | W78: 1.35 | Y78: 80 | Z78: 1.36 | AB78: 116 | AC78: 1.56 | AE78: 70 | AF78: 0.93 | AH78: 90 | AI78: 1.09 | AK78: 88 | AL78: 1.24 | AN78: 30 | AO78: 0.89
C79: 여 | D79: 1028 | E79: 1.22 | G79: 138 | H79: 2.08 | J79: 31 | K79: 0.99 | M79: 51 | N79: 0.9 | P79: 93 | Q79: 1.19 | S79: 186 | T79: 1.4 | V79: 137 | W79: 1.51 | Y79: 53 | Z79: 0.79 | AB79: 107 | AC79: 1.36 | AE79: 75 | AF79: 1.07 | AH79: 49 | AI79: 0.62 | AK79: 73 | AL79: 1.19 | AN79: 35 | AO79: 1.24
B80: 23세 | C80: 계 | D80: 2245 | E80: 1.31 | F80: 134.83 | G80: 260 | H80: 1.86 | I80: 145.28 | J80: 66 | K80: 1 | L80: 144.44 | M80: 104 | N80: 0.9 | O80: 147.62 | P80: 175 | Q80: 1.13 | R80: 139.73 | S80: 425 | T80: 1.61 | U80: 106.31 | V80: 305 | W80: 1.61 | X80: 113.29 | Y80: 134 | Z80: 1.07 | AA80: 112.7 | AB80: 192 | AC80: 1.25 | AD80: 182.35 | AE80: 142 | AF80: 0.98 | AG80: 129.03 | AH80: 153 | AI80: 0.95 | AJ80: 142.86 | AK80: 195 | AL80: 1.47 | AM80: 204.69 | AN80: 94 | AO80: 1.51 | AP80: 141.03
C81: 남 | D81: 1289 | E81: 1.48 | G81: 154 | H81: 2.09 | J81: 39 | K81: 1.13 | M81: 62 | N81: 1.04 | P81: 102 | Q81: 1.32 | S81: 219 | T81: 1.68 | V81: 162 | W81: 1.65 | Y81: 71 | Z81: 1.21 | AB81: 124 | AC81: 1.66 | AE81: 80 | AF81: 1.06 | AH81: 90 | AI81: 1.09 | AK81: 131 | AL81: 1.85 | AN81: 55 | AO81: 1.63
C82: 여 | D82: 956 | E82: 1.14 | G82: 106 | H82: 1.6 | J82: 27 | K82: 0.87 | M82: 42 | N82: 0.74 | P82: 73 | Q82: 0.93 | S82: 206 | T82: 1.55 | V82: 143 | W82: 1.58 | Y82: 63 | Z82: 0.94 | AB82: 68 | AC82: 0.87 | AE82: 62 | AF82: 0.88 | AH82: 63 | AI82: 0.8 | AK82: 64 | AL82: 1.04 | AN82: 39 | AO82: 1.38
B83: 24세 | C83: 계 | D83: 2288 | E83: 1.34 | F83: 131.58 | G83: 232 | H83: 1.66 | I83: 154.95 | J83: 72 | K83: 1.1 | L83: 166.67 | M83: 130 | N83: 1.12 | O83: 160 | P83: 193 | Q83: 1.24 | R83: 132.53 | S83: 368 | T83: 1.39 | U83: 115.2 | V83: 274 | W83: 1.45 | X83: 114.06 | Y83: 143 | Z83: 1.14 | AA83: 101.41 | AB83: 205 | AC83: 1.34 | AD83: 141.18 | AE83: 181 | AF83: 1.24 | AG83: 158.57 | AH83: 189 | AI83: 1.17 | AJ83: 125 | AK83: 201 | AL83: 1.52 | AM83: 136.47 | AN83: 100 | AO83: 1.61 | AP83: 132.56
C84: 남 | D84: 1300 | E84: 1.49 | G84: 141 | H84: 1.91 | J84: 45 | K84: 1.3 | M84: 80 | N84: 1.35 | P84: 110 | Q84: 1.42 | S84: 197 | T84: 1.51 | V84: 146 | W84: 1.48 | Y84: 72 | Z84: 1.23 | AB84: 120 | AC84: 1.61 | AE84: 111 | AF84: 1.47 | AH84: 105 | AI84: 1.27 | AK84: 116 | AL84: 1.64 | AN84: 57 | AO84: 1.69
C85: 여 | D85: 988 | E85: 1.18 | G85: 91 | H85: 1.37 | J85: 27 | K85: 0.87 | M85: 50 | N85: 0.88 | P85: 83 | Q85: 1.06 | S85: 171 | T85: 1.28 | V85: 128 | W85: 1.41 | Y85: 71 | Z85: 1.06 | AB85: 85 | AC85: 1.08 | AE85: 70 | AF85: 1 | AH85: 84 | AI85: 1.06 | AK85: 85 | AL85: 1.38 | AN85: 43 | AO85: 1.52
B86: 25세 | C86: 계 | D86: 2307 | E86: 1.35 | F86: 128.42 | G86: 215 | H86: 1.54 | I86: 108.74 | J86: 67 | K86: 1.02 | L86: 123.33 | M86: 123 | N86: 1.06 | O86: 112.07 | P86: 223 | Q86: 1.43 | R86: 114.42 | S86: 368 | T86: 1.39 | U86: 125.77 | V86: 292 | W86: 1.55 | X86: 126.36 | Y86: 156 | Z86: 1.24 | AA86: 126.09 | AB86: 191 | AC86: 1.25 | AD86: 172.86 | AE86: 182 | AF86: 1.25 | AG86: 121.95 | AH86: 179 | AI86: 1.11 | AJ86: 135.53 | AK86: 197 | AL86: 1.49 | AM86: 162.67 | AN86: 114 | AO86: 1.84 | AP86: 123.53
C87: 남 | D87: 1297 | E87: 1.49 | G87: 112 | H87: 1.52 | J87: 37 | K87: 1.07 | M87: 65 | N87: 1.09 | P87: 119 | Q87: 1.54 | S87: 205 | T87: 1.57 | V87: 163 | W87: 1.66 | Y87: 87 | Z87: 1.48 | AB87: 121 | AC87: 1.62 | AE87: 100 | AF87: 1.33 | AH87: 103 | AI87: 1.25 | AK87: 122 | AL87: 1.72 | AN87: 63 | AO87: 1.87
C88: 여 | D88: 1010 | E88: 1.2 | G88: 103 | H88: 1.55 | J88: 30 | K88: 0.96 | M88: 58 | N88: 1.02 | P88: 104 | Q88: 1.33 | S88: 163 | T88: 1.22 | V88: 129 | W88: 1.42 | Y88: 69 | Z88: 1.03 | AB88: 70 | AC88: 0.89 | AE88: 82 | AF88: 1.17 | AH88: 76 | AI88: 0.96 | AK88: 75 | AL88: 1.22 | AN88: 51 | AO88: 1.8
B89: 26세 | C89: 계 | D89: 2327 | E89: 1.36 | F89: 118.91 | G89: 205 | H89: 1.46 | I89: 135.63 | J89: 78 | K89: 1.19 | L89: 69.57 | M89: 137 | N89: 1.18 | O89: 110.77 | P89: 199 | Q89: 1.28 | R89: 109.47 | S89: 401 | T89: 1.52 | U89: 119.13 | V89: 292 | W89: 1.55 | X89: 122.9 | Y89: 155 | Z89: 1.23 | AA89: 86.75 | AB89: 188 | AC89: 1.23 | AD89: 106.59 | AE89: 182 | AF89: 1.25 | AG89: 127.5 | AH89: 172 | AI89: 1.06 | AJ89: 181.97 | AK89: 210 | AL89: 1.59 | AM89: 114.29 | AN89: 108 | AO89: 1.74 | AP89: 151.16
C90: 남 | D90: 1264 | E90: 1.45 | G90: 118 | H90: 1.6 | J90: 32 | K90: 0.93 | M90: 72 | N90: 1.21 | P90: 104 | Q90: 1.35 | S90: 218 | T90: 1.67 | V90: 161 | W90: 1.64 | Y90: 72 | Z90: 1.23 | AB90: 97 | AC90: 1.3 | AE90: 102 | AF90: 1.35 | AH90: 111 | AI90: 1.34 | AK90: 112 | AL90: 1.58 | AN90: 65 | AO90: 1.93
C91: 여 | D91: 1063 | E91: 1.27 | G91: 87 | H91: 1.31 | J91: 46 | K91: 1.48 | M91: 65 | N91: 1.15 | P91: 95 | Q91: 1.22 | S91: 183 | T91: 1.37 | V91: 131 | W91: 1.45 | Y91: 83 | Z91: 1.24 | AB91: 91 | AC91: 1.16 | AE91: 80 | AF91: 1.14 | AH91: 61 | AI91: 0.77 | AK91: 98 | AL91: 1.6 | AN91: 43 | AO91: 1.52
B92: 27세 | C92: 계 | D92: 2372 | E92: 1.39 | F92: 125.69 | G92: 189 | H92: 1.35 | I92: 145.45 | J92: 90 | K92: 1.37 | L92: 125 | M92: 128 | N92: 1.1 | O92: 106.45 | P92: 233 | Q92: 1.5 | R92: 100.86 | S92: 362 | T92: 1.37 | U92: 123.46 | V92: 330 | W92: 1.75 | X92: 164 | Y92: 160 | Z92: 1.27 | AA92: 105.13 | AB92: 176 | AC92: 1.15 | AD92: 125.64 | AE92: 211 | AF92: 1.45 | AG92: 151.19 | AH92: 197 | AI92: 1.22 | AJ92: 114.13 | AK92: 200 | AL92: 1.51 | AM92: 119.78 | AN92: 96 | AO92: 1.55 | AP92: 108.7
C93: 남 | D93: 1321 | E93: 1.52 | G93: 112 | H93: 1.52 | J93: 50 | K93: 1.45 | M93: 66 | N93: 1.11 | P93: 117 | Q93: 1.51 | S93: 200 | T93: 1.53 | V93: 205 | W93: 2.08 | Y93: 82 | Z93: 1.4 | AB93: 98 | AC93: 1.32 | AE93: 127 | AF93: 1.69 | AH93: 105 | AI93: 1.27 | AK93: 109 | AL93: 1.54 | AN93: 50 | AO93: 1.48
C94: 여 | D94: 1051 | E94: 1.25 | G94: 77 | H94: 1.16 | J94: 40 | K94: 1.28 | M94: 62 | N94: 1.1 | P94: 116 | Q94: 1.48 | S94: 162 | T94: 1.22 | V94: 125 | W94: 1.38 | Y94: 78 | Z94: 1.17 | AB94: 78 | AC94: 0.99 | AE94: 84 | AF94: 1.2 | AH94: 92 | AI94: 1.17 | AK94: 91 | AL94: 1.48 | AN94: 46 | AO94: 1.62
B95: 28세 | C95: 계 | D95: 2306 | E95: 1.35 | F95: 130.37 | G95: 197 | H95: 1.41 | I95: 169.86 | J95: 76 | K95: 1.16 | L95: 230.43 | M95: 131 | N95: 1.13 | O95: 111.29 | P95: 169 | Q95: 1.09 | R95: 119.48 | S95: 334 | T95: 1.27 | U95: 116.88 | V95: 319 | W95: 1.69 | X95: 132.85 | Y95: 159 | Z95: 1.27 | AA95: 133.82 | AB95: 153 | AC95: 1 | AD95: 115.49 | AE95: 200 | AF95: 1.37 | AG95: 122.22 | AH95: 209 | AI95: 1.29 | AJ95: 109 | AK95: 248 | AL95: 1.88 | AM95: 145.54 | AN95: 111 | AO95: 1.79 | AP95: 146.67
C96: 남 | D96: 1305 | E96: 1.5 | G96: 124 | H96: 1.68 | J96: 53 | K96: 1.53 | M96: 69 | N96: 1.16 | P96: 92 | Q96: 1.19 | S96: 180 | T96: 1.38 | V96: 182 | W96: 1.85 | Y96: 91 | Z96: 1.55 | AB96: 82 | AC96: 1.1 | AE96: 110 | AF96: 1.46 | AH96: 109 | AI96: 1.32 | AK96: 147 | AL96: 2.08 | AN96: 66 | AO96: 1.96
C97: 여 | D97: 1001 | E97: 1.19 | G97: 73 | H97: 1.1 | J97: 23 | K97: 0.74 | M97: 62 | N97: 1.1 | P97: 77 | Q97: 0.98 | S97: 154 | T97: 1.16 | V97: 137 | W97: 1.51 | Y97: 68 | Z97: 1.02 | AB97: 71 | AC97: 0.9 | AE97: 90 | AF97: 1.28 | AH97: 100 | AI97: 1.27 | AK97: 101 | AL97: 1.64 | AN97: 45 | AO97: 1.59
B98: 29세 | C98: 계 | D98: 2257 | E98: 1.32 | F98: 121.93 | G98: 185 | H98: 1.32 | I98: 128.4 | J98: 65 | K98: 0.99 | L98: 140.74 | M98: 134 | N98: 1.15 | O98: 139.29 | P98: 175 | Q98: 1.13 | R98: 161.19 | S98: 295 | T98: 1.12 | U98: 94.08 | V98: 282 | W98: 1.49 | X98: 131.15 | Y98: 158 | Z98: 1.26 | AA98: 110.67 | AB98: 172 | AC98: 1.12 | AD98: 112.35 | AE98: 209 | AF98: 1.44 | AG98: 120 | AH98: 242 | AI98: 1.5 | AJ98: 75.36 | AK98: 220 | AL98: 1.66 | AM98: 178.48 | AN98: 120 | AO98: 1.93 | AP98: 172.73
C99: 남 | D99: 1240 | E99: 1.43 | G99: 104 | H99: 1.41 | J99: 38 | K99: 1.1 | M99: 78 | N99: 1.31 | P99: 108 | Q99: 1.4 | S99: 143 | T99: 1.09 | V99: 160 | W99: 1.63 | Y99: 83 | Z99: 1.41 | AB99: 91 | AC99: 1.22 | AE99: 114 | AF99: 1.51 | AH99: 104 | AI99: 1.26 | AK99: 141 | AL99: 1.99 | AN99: 76 | AO99: 2.25
C100: 여 | D100: 1017 | E100: 1.21 | G100: 81 | H100: 1.22 | J100: 27 | K100: 0.87 | M100: 56 | N100: 0.99 | P100: 67 | Q100: 0.86 | S100: 152 | T100: 1.14 | V100: 122 | W100: 1.35 | Y100: 75 | Z100: 1.12 | AB100: 81 | AC100: 1.03 | AE100: 95 | AF100: 1.35 | AH100: 138 | AI100: 1.75 | AK100: 79 | AL100: 1.29 | AN100: 44 | AO100: 1.55
B101: 30세 | C101: 계 | D101: 2319 | E101: 1.36 | F101: 135.67 | G101: 180 | H101: 1.29 | I101: 168.66 | J101: 79 | K101: 1.2 | L101: 163.33 | M101: 155 | N101: 1.34 | O101: 142.19 | P101: 207 | Q101: 1.33 | R101: 135.23 | S101: 288 | T101: 1.09 | U101: 130.4 | V101: 281 | W101: 1.49 | X101: 165.09 | Y101: 170 | Z101: 1.35 | AA101: 82.8 | AB101: 166 | AC101: 1.09 | AD101: 130.56 | AE101: 238 | AF101: 1.64 | AG101: 133.33 | AH101: 228 | AI101: 1.41 | AJ101: 111.11 | AK101: 226 | AL101: 1.71 | AM101: 162.79 | AN101: 101 | AO101: 1.63 | AP101: 134.88
C102: 남 | D102: 1335 | E102: 1.53 | G102: 113 | H102: 1.53 | J102: 49 | K102: 1.42 | M102: 91 | N102: 1.53 | P102: 119 | Q102: 1.54 | S102: 163 | T102: 1.25 | V102: 175 | W102: 1.78 | Y102: 77 | Z102: 1.31 | AB102: 94 | AC102: 1.26 | AE102: 136 | AF102: 1.81 | AH102: 120 | AI102: 1.45 | AK102: 140 | AL102: 1.98 | AN102: 58 | AO102: 1.72
C103: 여 | D103: 984 | E103: 1.17 | G103: 67 | H103: 1.01 | J103: 30 | K103: 0.96 | M103: 64 | N103: 1.13 | P103: 88 | Q103: 1.13 | S103: 125 | T103: 0.94 | V103: 106 | W103: 1.17 | Y103: 93 | Z103: 1.39 | AB103: 72 | AC103: 0.92 | AE103: 102 | AF103: 1.45 | AH103: 108 | AI103: 1.37 | AK103: 86 | AL103: 1.4 | AN103: 43 | AO103: 1.52
B104: 31세 | C104: 계 | D104: 2184 | E104: 1.28 | F104: 127.03 | G104: 148 | H104: 1.06 | I104: 142.62 | J104: 83 | K104: 1.26 | L104: 130.56 | M104: 131 | N104: 1.13 | O104: 178.72 | P104: 166 | Q104: 1.07 | R104: 144.12 | S104: 266 | T104: 1.01 | U104: 100 | V104: 281 | W104: 1.49 | X104: 136.13 | Y104: 168 | Z104: 1.34 | AA104: 84.62 | AB104: 148 | AC104: 0.97 | AD104: 131.25 | AE104: 237 | AF104: 1.63 | AG104: 127.88 | AH104: 235 | AI104: 1.45 | AJ104: 92.62 | AK104: 219 | AL104: 1.66 | AM104: 195.95 | AN104: 102 | AO104: 1.64 | AP104: 137.21
C105: 남 | D105: 1222 | E105: 1.4 | G105: 87 | H105: 1.18 | J105: 47 | K105: 1.36 | M105: 84 | N105: 1.41 | P105: 98 | Q105: 1.27 | S105: 133 | T105: 1.02 | V105: 162 | W105: 1.65 | Y105: 77 | Z105: 1.31 | AB105: 84 | AC105: 1.13 | AE105: 133 | AF105: 1.77 | AH105: 113 | AI105: 1.37 | AK105: 145 | AL105: 2.05 | AN105: 59 | AO105: 1.75
C106: 여 | D106: 962 | E106: 1.14 | G106: 61 | H106: 0.92 | J106: 36 | K106: 1.15 | M106: 47 | N106: 0.83 | P106: 68 | Q106: 0.87 | S106: 133 | T106: 1 | V106: 119 | W106: 1.31 | Y106: 91 | Z106: 1.36 | AB106: 64 | AC106: 0.82 | AE106: 104 | AF106: 1.48 | AH106: 122 | AI106: 1.55 | AK106: 74 | AL106: 1.2 | AN106: 43 | AO106: 1.52
B107: 32세 | C107: 계 | D107: 2001 | E107: 1.17 | F107: 135.97 | G107: 142 | H107: 1.01 | I107: 173.08 | J107: 78 | K107: 1.19 | L107: 188.89 | M107: 112 | N107: 0.96 | O107: 148.89 | P107: 151 | Q107: 0.97 | R107: 155.93 | S107: 243 | T107: 0.92 | U107: 120.91 | V107: 229 | W107: 1.21 | X107: 138.54 | Y107: 169 | Z107: 1.35 | AA107: 106.1 | AB107: 135 | AC107: 0.88 | AD107: 128.81 | AE107: 229 | AF107: 1.57 | AG107: 110.09 | AH107: 246 | AI107: 1.52 | AJ107: 106.72 | AK107: 172 | AL107: 1.3 | AM107: 173.02 | AN107: 95 | AO107: 1.53 | AP107: 251.85
C108: 남 | D108: 1153 | E108: 1.33 | G108: 90 | H108: 1.22 | J108: 51 | K108: 1.48 | M108: 67 | N108: 1.13 | P108: 92 | Q108: 1.19 | S108: 133 | T108: 1.02 | V108: 133 | W108: 1.35 | Y108: 87 | Z108: 1.48 | AB108: 76 | AC108: 1.02 | AE108: 120 | AF108: 1.59 | AH108: 127 | AI108: 1.54 | AK108: 109 | AL108: 1.54 | AN108: 68 | AO108: 2.01
C109: 여 | D109: 848 | E109: 1.01 | G109: 52 | H109: 0.78 | J109: 27 | K109: 0.87 | M109: 45 | N109: 0.79 | P109: 59 | Q109: 0.75 | S109: 110 | T109: 0.83 | V109: 96 | W109: 1.06 | Y109: 82 | Z109: 1.23 | AB109: 59 | AC109: 0.75 | AE109: 109 | AF109: 1.55 | AH109: 119 | AI109: 1.51 | AK109: 63 | AL109: 1.03 | AN109: 27 | AO109: 0.95
B110: 33세 | C110: 계 | D110: 1925 | E110: 1.13 | F110: 132.77 | G110: 131 | H110: 0.94 | I110: 172.92 | J110: 79 | K110: 1.2 | L110: 203.85 | M110: 116 | N110: 1 | O110: 169.77 | P110: 143 | Q110: 0.92 | R110: 123.44 | S110: 210 | T110: 0.8 | U110: 118.75 | V110: 199 | W110: 1.05 | X110: 161.84 | Y110: 145 | Z110: 1.15 | AA110: 110.14 | AB110: 140 | AC110: 0.92 | AD110: 89.19 | AE110: 243 | AF110: 1.67 | AG110: 135.92 | AH110: 245 | AI110: 1.52 | AJ110: 94.44 | AK110: 165 | AL110: 1.25 | AM110: 150 | AN110: 109 | AO110: 1.76 | AP110: 202.78
C111: 남 | D111: 1098 | E111: 1.26 | G111: 83 | H111: 1.13 | J111: 53 | K111: 1.53 | M111: 73 | N111: 1.23 | P111: 79 | Q111: 1.02 | S111: 114 | T111: 0.87 | V111: 123 | W111: 1.25 | Y111: 76 | Z111: 1.29 | AB111: 66 | AC111: 0.89 | AE111: 140 | AF111: 1.86 | AH111: 119 | AI111: 1.44 | AK111: 99 | AL111: 1.4 | AN111: 73 | AO111: 2.16
C112: 여 | D112: 827 | E112: 0.98 | G112: 48 | H112: 0.72 | J112: 26 | K112: 0.83 | M112: 43 | N112: 0.76 | P112: 64 | Q112: 0.82 | S112: 96 | T112: 0.72 | V112: 76 | W112: 0.84 | Y112: 69 | Z112: 1.03 | AB112: 74 | AC112: 0.94 | AE112: 103 | AF112: 1.47 | AH112: 126 | AI112: 1.6 | AK112: 66 | AL112: 1.07 | AN112: 36 | AO112: 1.27
B113: 34세 | C113: 계 | D113: 1818 | E113: 1.06 | F113: 131 | G113: 131 | H113: 0.94 | I113: 138.18 | J113: 68 | K113: 1.03 | L113: 94.29 | M113: 98 | N113: 0.84 | O113: 157.89 | P113: 133 | Q113: 0.86 | R113: 125.42 | S113: 228 | T113: 0.86 | U113: 111.11 | V113: 190 | W113: 1.01 | X113: 163.89 | Y113: 161 | Z113: 1.28 | AA113: 117.57 | AB113: 136 | AC113: 0.89 | AD113: 106.06 | AE113: 194 | AF113: 1.33 | AG113: 136.59 | AH113: 225 | AI113: 1.39 | AJ113: 114.29 | AK113: 144 | AL113: 1.09 | AM113: 193.88 | AN113: 110 | AO113: 1.77 | AP113: 150
C114: 남 | D114: 1031 | E114: 1.19 | G114: 76 | H114: 1.03 | J114: 33 | K114: 0.95 | M114: 60 | N114: 1.01 | P114: 74 | Q114: 0.96 | S114: 120 | T114: 0.92 | V114: 118 | W114: 1.2 | Y114: 87 | Z114: 1.48 | AB114: 70 | AC114: 0.94 | AE114: 112 | AF114: 1.49 | AH114: 120 | AI114: 1.45 | AK114: 95 | AL114: 1.34 | AN114: 66 | AO114: 1.96
C115: 여 | D115: 787 | E115: 0.94 | G115: 55 | H115: 0.83 | J115: 35 | K115: 1.12 | M115: 38 | N115: 0.67 | P115: 59 | Q115: 0.75 | S115: 108 | T115: 0.81 | V115: 72 | W115: 0.8 | Y115: 74 | Z115: 1.11 | AB115: 66 | AC115: 0.84 | AE115: 82 | AF115: 1.17 | AH115: 105 | AI115: 1.33 | AK115: 49 | AL115: 0.8 | AN115: 44 | AO115: 1.55
B116: 35세 | C116: 계 | D116: 1874 | E116: 1.1 | F116: 126.33 | G116: 136 | H116: 0.97 | I116: 106.06 | J116: 73 | K116: 1.11 | L116: 128.13 | M116: 106 | N116: 0.91 | O116: 116.33 | P116: 136 | Q116: 0.87 | R116: 112.5 | S116: 243 | T116: 0.92 | U116: 111.3 | V116: 200 | W116: 1.06 | X116: 153.16 | Y116: 158 | Z116: 1.26 | AA116: 116.44 | AB116: 133 | AC116: 0.87 | AD116: 101.52 | AE116: 181 | AF116: 1.24 | AG116: 206.78 | AH116: 284 | AI116: 1.76 | AJ116: 107.3 | AK116: 152 | AL116: 1.15 | AM116: 149.18 | AN116: 72 | AO116: 1.16 | AP116: 166.67
C117: 남 | D117: 1046 | E117: 1.2 | G117: 70 | H117: 0.95 | J117: 41 | K117: 1.19 | M117: 57 | N117: 0.96 | P117: 72 | Q117: 0.93 | S117: 128 | T117: 0.98 | V117: 121 | W117: 1.23 | Y117: 85 | Z117: 1.45 | AB117: 67 | AC117: 0.9 | AE117: 122 | AF117: 1.62 | AH117: 147 | AI117: 1.78 | AK117: 91 | AL117: 1.28 | AN117: 45 | AO117: 1.33
C118: 여 | D118: 828 | E118: 0.99 | G118: 66 | H118: 1 | J118: 32 | K118: 1.03 | M118: 49 | N118: 0.87 | P118: 64 | Q118: 0.82 | S118: 115 | T118: 0.86 | V118: 79 | W118: 0.87 | Y118: 73 | Z118: 1.09 | AB118: 66 | AC118: 0.84 | AE118: 59 | AF118: 0.84 | AH118: 137 | AI118: 1.74 | AK118: 61 | AL118: 0.99 | AN118: 27 | AO118: 0.95
B119: 36세 | C119: 계 | D119: 1797 | E119: 1.05 | F119: 122.13 | G119: 138 | H119: 0.99 | I119: 115.63 | J119: 53 | K119: 0.81 | L119: 112 | M119: 110 | N119: 0.95 | O119: 120 | P119: 131 | Q119: 0.84 | R119: 122.03 | S119: 236 | T119: 0.89 | U119: 112.61 | V119: 175 | W119: 0.93 | X119: 157.35 | Y119: 145 | Z119: 1.15 | AA119: 104.23 | AB119: 125 | AC119: 0.82 | AD119: 108.33 | AE119: 183 | AF119: 1.26 | AG119: 125.93 | AH119: 281 | AI119: 1.74 | AJ119: 119.53 | AK119: 146 | AL119: 1.1 | AM119: 114.71 | AN119: 74 | AO119: 1.19 | AP119: 208.33
C120: 남 | D120: 988 | E120: 1.14 | G120: 74 | H120: 1 | J120: 28 | K120: 0.81 | M120: 60 | N120: 1.01 | P120: 72 | Q120: 0.93 | S120: 125 | T120: 0.96 | V120: 107 | W120: 1.09 | Y120: 74 | Z120: 1.26 | AB120: 65 | AC120: 0.87 | AE120: 102 | AF120: 1.35 | AH120: 153 | AI120: 1.85 | AK120: 78 | AL120: 1.1 | AN120: 50 | AO120: 1.48
C121: 여 | D121: 809 | E121: 0.96 | G121: 64 | H121: 0.97 | J121: 25 | K121: 0.8 | M121: 50 | N121: 0.88 | P121: 59 | Q121: 0.75 | S121: 111 | T121: 0.83 | V121: 68 | W121: 0.75 | Y121: 71 | Z121: 1.06 | AB121: 60 | AC121: 0.76 | AE121: 81 | AF121: 1.15 | AH121: 128 | AI121: 1.62 | AK121: 68 | AL121: 1.11 | AN121: 24 | AO121: 0.85
B122: 37세 | C122: 계 | D122: 1851 | E122: 1.08 | F122: 113 | G122: 138 | H122: 0.99 | I122: 137.93 | J122: 68 | K122: 1.03 | L122: 74.36 | M122: 95 | N122: 0.82 | O122: 150 | P122: 140 | Q122: 0.9 | R122: 91.78 | S122: 235 | T122: 0.89 | U122: 106.14 | V122: 219 | W122: 1.16 | X122: 125.77 | Y122: 144 | Z122: 1.15 | AA122: 102.82 | AB122: 109 | AC122: 0.71 | AD122: 194.59 | AE122: 171 | AF122: 1.18 | AG122: 98.84 | AH122: 290 | AI122: 1.79 | AJ122: 93.33 | AK122: 159 | AL122: 1.2 | AM122: 123.94 | AN122: 83 | AO122: 1.34 | AP122: 137.14
C123: 남 | D123: 982 | E123: 1.13 | G123: 80 | H123: 1.09 | J123: 29 | K123: 0.84 | M123: 57 | N123: 0.96 | P123: 67 | Q123: 0.87 | S123: 121 | T123: 0.93 | V123: 122 | W123: 1.24 | Y123: 73 | Z123: 1.24 | AB123: 72 | AC123: 0.97 | AE123: 85 | AF123: 1.13 | AH123: 140 | AI123: 1.69 | AK123: 88 | AL123: 1.24 | AN123: 48 | AO123: 1.42
C124: 여 | D124: 869 | E124: 1.03 | G124: 58 | H124: 0.87 | J124: 39 | K124: 1.25 | M124: 38 | N124: 0.67 | P124: 73 | Q124: 0.93 | S124: 114 | T124: 0.86 | V124: 97 | W124: 1.07 | Y124: 71 | Z124: 1.06 | AB124: 37 | AC124: 0.47 | AE124: 86 | AF124: 1.22 | AH124: 150 | AI124: 1.9 | AK124: 71 | AL124: 1.16 | AN124: 35 | AO124: 1.24
B125: 38세 | C125: 계 | D125: 1780 | E125: 1.04 | F125: 120.3 | G125: 117 | H125: 0.84 | I125: 138.78 | J125: 67 | K125: 1.02 | L125: 97.06 | M125: 112 | N125: 0.96 | O125: 96.49 | P125: 112 | Q125: 0.72 | R125: 180 | S125: 256 | T125: 0.97 | U125: 100 | V125: 159 | W125: 0.84 | X125: 120.83 | Y125: 140 | Z125: 1.12 | AA125: 102.9 | AB125: 129 | AC125: 0.84 | AD125: 89.71 | AE125: 177 | AF125: 1.22 | AG125: 121.25 | AH125: 289 | AI125: 1.79 | AJ125: 115.67 | AK125: 138 | AL125: 1.04 | AM125: 181.63 | AN125: 84 | AO125: 1.35 | AP125: 200
C126: 남 | D126: 972 | E126: 1.12 | G126: 68 | H126: 0.92 | J126: 33 | K126: 0.95 | M126: 55 | N126: 0.93 | P126: 72 | Q126: 0.93 | S126: 128 | T126: 0.98 | V126: 87 | W126: 0.88 | Y126: 71 | Z126: 1.21 | AB126: 61 | AC126: 0.82 | AE126: 97 | AF126: 1.29 | AH126: 155 | AI126: 1.87 | AK126: 89 | AL126: 1.26 | AN126: 56 | AO126: 1.66
C127: 여 | D127: 808 | E127: 0.96 | G127: 49 | H127: 0.74 | J127: 34 | K127: 1.09 | M127: 57 | N127: 1.01 | P127: 40 | Q127: 0.51 | S127: 128 | T127: 0.96 | V127: 72 | W127: 0.8 | Y127: 69 | Z127: 1.03 | AB127: 68 | AC127: 0.87 | AE127: 80 | AF127: 1.14 | AH127: 134 | AI127: 1.7 | AK127: 49 | AL127: 0.8 | AN127: 28 | AO127: 0.99
B128: 39세 | C128: 계 | D128: 1902 | E128: 1.11 | F128: 116.14 | G128: 113 | H128: 0.81 | I128: 113.21 | J128: 67 | K128: 1.02 | L128: 81.08 | M128: 104 | N128: 0.9 | O128: 131.11 | P128: 143 | Q128: 0.92 | R128: 107.25 | S128: 277 | T128: 1.05 | U128: 100.72 | V128: 184 | W128: 0.97 | X128: 116.47 | Y128: 145 | Z128: 1.15 | AA128: 133.87 | AB128: 153 | AC128: 1 | AD128: 104 | AE128: 191 | AF128: 1.31 | AG128: 185.07 | AH128: 289 | AI128: 1.79 | AJ128: 90.13 | AK128: 137 | AL128: 1.04 | AM128: 114.06 | AN128: 99 | AO128: 1.59 | AP128: 200
C129: 남 | D129: 1022 | E129: 1.17 | G129: 60 | H129: 0.81 | J129: 30 | K129: 0.87 | M129: 59 | N129: 0.99 | P129: 74 | Q129: 0.96 | S129: 139 | T129: 1.06 | V129: 99 | W129: 1.01 | Y129: 83 | Z129: 1.41 | AB129: 78 | AC129: 1.05 | AE129: 124 | AF129: 1.65 | AH129: 137 | AI129: 1.66 | AK129: 73 | AL129: 1.03 | AN129: 66 | AO129: 1.96
C130: 여 | D130: 880 | E130: 1.05 | G130: 53 | H130: 0.8 | J130: 37 | K130: 1.19 | M130: 45 | N130: 0.79 | P130: 69 | Q130: 0.88 | S130: 138 | T130: 1.04 | V130: 85 | W130: 0.94 | Y130: 62 | Z130: 0.93 | AB130: 75 | AC130: 0.96 | AE130: 67 | AF130: 0.95 | AH130: 152 | AI130: 1.93 | AK130: 64 | AL130: 1.04 | AN130: 33 | AO130: 1.16
B131: 40세 | C131: 계 | D131: 2130 | E131: 1.25 | F131: 118.01 | G131: 141 | H131: 1.01 | I131: 151.79 | J131: 87 | K131: 1.32 | L131: 141.67 | M131: 115 | N131: 0.99 | O131: 134.69 | P131: 177 | Q131: 1.14 | R131: 113.25 | S131: 328 | T131: 1.24 | U131: 91.81 | V131: 245 | W131: 1.3 | X131: 128.97 | Y131: 141 | Z131: 1.12 | AA131: 110.45 | AB131: 163 | AC131: 1.07 | AD131: 89.53 | AE131: 189 | AF131: 1.3 | AG131: 139.24 | AH131: 326 | AI131: 2.02 | AJ131: 111.69 | AK131: 129 | AL131: 0.98 | AM131: 174.47 | AN131: 89 | AO131: 1.43 | AP131: 111.9
C132: 남 | D132: 1153 | E132: 1.33 | G132: 85 | H132: 1.15 | J132: 51 | K132: 1.48 | M132: 66 | N132: 1.11 | P132: 94 | Q132: 1.22 | S132: 157 | T132: 1.2 | V132: 138 | W132: 1.4 | Y132: 74 | Z132: 1.26 | AB132: 77 | AC132: 1.03 | AE132: 110 | AF132: 1.46 | AH132: 172 | AI132: 2.08 | AK132: 82 | AL132: 1.16 | AN132: 47 | AO132: 1.39
C133: 여 | D133: 977 | E133: 1.16 | G133: 56 | H133: 0.84 | J133: 36 | K133: 1.15 | M133: 49 | N133: 0.87 | P133: 83 | Q133: 1.06 | S133: 171 | T133: 1.28 | V133: 107 | W133: 1.18 | Y133: 67 | Z133: 1 | AB133: 86 | AC133: 1.1 | AE133: 79 | AF133: 1.13 | AH133: 154 | AI133: 1.95 | AK133: 47 | AL133: 0.77 | AN133: 42 | AO133: 1.48
B134: 41세 | C134: 계 | D134: 2353 | E134: 1.38 | F134: 111.6 | G134: 145 | H134: 1.04 | I134: 168.52 | J134: 103 | K134: 1.57 | L134: 83.93 | M134: 147 | N134: 1.27 | O134: 107.04 | P134: 196 | Q134: 1.26 | R134: 104.17 | S134: 371 | T134: 1.41 | U134: 93.23 | V134: 229 | W134: 1.21 | X134: 108.18 | Y134: 169 | Z134: 1.35 | AA134: 103.61 | AB134: 179 | AC134: 1.17 | AD134: 118.29 | AE134: 207 | AF134: 1.42 | AG134: 111.22 | AH134: 326 | AI134: 2.02 | AJ134: 106.33 | AK134: 184 | AL134: 1.39 | AM134: 121.69 | AN134: 97 | AO134: 1.56 | AP134: 234.48
C135: 남 | D135: 1241 | E135: 1.43 | G135: 91 | H135: 1.23 | J135: 47 | K135: 1.36 | M135: 76 | N135: 1.28 | P135: 100 | Q135: 1.29 | S135: 179 | T135: 1.37 | V135: 119 | W135: 1.21 | Y135: 86 | Z135: 1.46 | AB135: 97 | AC135: 1.3 | AE135: 109 | AF135: 1.45 | AH135: 168 | AI135: 2.03 | AK135: 101 | AL135: 1.43 | AN135: 68 | AO135: 2.01
C136: 여 | D136: 1112 | E136: 1.32 | G136: 54 | H136: 0.81 | J136: 56 | K136: 1.8 | M136: 71 | N136: 1.25 | P136: 96 | Q136: 1.23 | S136: 192 | T136: 1.44 | V136: 110 | W136: 1.22 | Y136: 83 | Z136: 1.24 | AB136: 82 | AC136: 1.04 | AE136: 98 | AF136: 1.4 | AH136: 158 | AI136: 2 | AK136: 83 | AL136: 1.35 | AN136: 29 | AO136: 1.02
B137: 42세 | C137: 계 | D137: 2330 | E137: 1.36 | F137: 110.29 | G137: 155 | H137: 1.11 | I137: 127.94 | J137: 103 | K137: 1.57 | L137: 212.12 | M137: 142 | N137: 1.22 | O137: 89.33 | P137: 204 | Q137: 1.31 | R137: 92.45 | S137: 400 | T137: 1.52 | U137: 84.33 | V137: 247 | W137: 1.31 | X137: 142.16 | Y137: 147 | Z137: 1.17 | AA137: 98.65 | AB137: 168 | AC137: 1.1 | AD137: 90.91 | AE137: 171 | AF137: 1.18 | AG137: 111.11 | AH137: 304 | AI137: 1.88 | AJ137: 135.66 | AK137: 171 | AL137: 1.29 | AM137: 113.75 | AN137: 118 | AO137: 1.9 | AP137: 114.55
C138: 남 | D138: 1222 | E138: 1.4 | G138: 87 | H138: 1.18 | J138: 70 | K138: 2.02 | M138: 67 | N138: 1.13 | P138: 98 | Q138: 1.27 | S138: 183 | T138: 1.4 | V138: 145 | W138: 1.47 | Y138: 73 | Z138: 1.24 | AB138: 80 | AC138: 1.07 | AE138: 90 | AF138: 1.2 | AH138: 175 | AI138: 2.12 | AK138: 91 | AL138: 1.28 | AN138: 63 | AO138: 1.87
C139: 여 | D139: 1108 | E139: 1.32 | G139: 68 | H139: 1.03 | J139: 33 | K139: 1.06 | M139: 75 | N139: 1.32 | P139: 106 | Q139: 1.36 | S139: 217 | T139: 1.63 | V139: 102 | W139: 1.13 | Y139: 74 | Z139: 1.11 | AB139: 88 | AC139: 1.12 | AE139: 81 | AF139: 1.15 | AH139: 129 | AI139: 1.63 | AK139: 80 | AL139: 1.3 | AN139: 55 | AO139: 1.94
B140: 43세 | C140: 계 | D140: 2350 | E140: 1.37 | F140: 110.01 | G140: 185 | H140: 1.32 | I140: 107.87 | J140: 100 | K140: 1.52 | L140: 104.08 | M140: 135 | N140: 1.16 | O140: 98.53 | P140: 208 | Q140: 1.34 | R140: 116.67 | S140: 373 | T140: 1.41 | U140: 97.35 | V140: 239 | W140: 1.27 | X140: 125.47 | Y140: 168 | Z140: 1.34 | AA140: 121.05 | AB140: 174 | AC140: 1.14 | AD140: 91.21 | AE140: 167 | AF140: 1.15 | AG140: 128.77 | AH140: 323 | AI140: 2 | AJ140: 116.78 | AK140: 165 | AL140: 1.25 | AM140: 106.25 | AN140: 113 | AO140: 1.82 | AP140: 113.21
C141: 남 | D141: 1231 | E141: 1.42 | G141: 96 | H141: 1.3 | J141: 51 | K141: 1.48 | M141: 67 | N141: 1.13 | P141: 112 | Q141: 1.45 | S141: 184 | T141: 1.41 | V141: 133 | W141: 1.35 | Y141: 92 | Z141: 1.57 | AB141: 83 | AC141: 1.11 | AE141: 94 | AF141: 1.25 | AH141: 174 | AI141: 2.1 | AK141: 85 | AL141: 1.2 | AN141: 60 | AO141: 1.78
C142: 여 | D142: 1119 | E142: 1.33 | G142: 89 | H142: 1.34 | J142: 49 | K142: 1.57 | M142: 68 | N142: 1.2 | P142: 96 | Q142: 1.23 | S142: 189 | T142: 1.42 | V142: 106 | W142: 1.17 | Y142: 76 | Z142: 1.14 | AB142: 91 | AC142: 1.16 | AE142: 73 | AF142: 1.04 | AH142: 149 | AI142: 1.89 | AK142: 80 | AL142: 1.3 | AN142: 53 | AO142: 1.87
B143: 44세 | C143: 계 | D143: 2256 | E143: 1.32 | F143: 107.73 | G143: 150 | H143: 1.07 | I143: 117.39 | J143: 81 | K143: 1.23 | L143: 145.45 | M143: 104 | N143: 0.9 | O143: 126.09 | P143: 218 | Q143: 1.4 | R143: 91.23 | S143: 402 | T143: 1.52 | U143: 84.4 | V143: 254 | W143: 1.34 | X143: 100 | Y143: 160 | Z143: 1.27 | AA143: 100 | AB143: 205 | AC143: 1.34 | AD143: 95.24 | AE143: 178 | AF143: 1.22 | AG143: 111.9 | AH143: 244 | AI143: 1.51 | AJ143: 154.17 | AK143: 153 | AL143: 1.16 | AM143: 115.49 | AN143: 107 | AO143: 1.72 | AP143: 148.84
C144: 남 | D144: 1170 | E144: 1.34 | G144: 81 | H144: 1.1 | J144: 48 | K144: 1.39 | M144: 58 | N144: 0.98 | P144: 104 | Q144: 1.35 | S144: 184 | T144: 1.41 | V144: 127 | W144: 1.29 | Y144: 80 | Z144: 1.36 | AB144: 100 | AC144: 1.34 | AE144: 94 | AF144: 1.25 | AH144: 148 | AI144: 1.79 | AK144: 82 | AL144: 1.16 | AN144: 64 | AO144: 1.9
C145: 여 | D145: 1086 | E145: 1.29 | G145: 69 | H145: 1.04 | J145: 33 | K145: 1.06 | M145: 46 | N145: 0.81 | P145: 114 | Q145: 1.46 | S145: 218 | T145: 1.64 | V145: 127 | W145: 1.4 | Y145: 80 | Z145: 1.2 | AB145: 105 | AC145: 1.34 | AE145: 84 | AF145: 1.2 | AH145: 96 | AI145: 1.22 | AK145: 71 | AL145: 1.16 | AN145: 43 | AO145: 1.52
B146: 45세 | C146: 계 | D146: 2332 | E146: 1.36 | F146: 106.92 | G146: 160 | H146: 1.14 | I146: 128.57 | J146: 79 | K146: 1.2 | L146: 107.89 | M146: 148 | N146: 1.28 | O146: 142.62 | P146: 199 | Q146: 1.28 | R146: 103.06 | S146: 442 | T146: 1.67 | U146: 79.67 | V146: 278 | W146: 1.47 | X146: 115.5 | Y146: 139 | Z146: 1.11 | AA146: 120.63 | AB146: 167 | AC146: 1.09 | AD146: 91.95 | AE146: 186 | AF146: 1.28 | AG146: 102.17 | AH146: 245 | AI146: 1.52 | AJ146: 118.75 | AK146: 188 | AL146: 1.42 | AM146: 121.18 | AN146: 101 | AO146: 1.63 | AP146: 119.57
C147: 남 | D147: 1205 | E147: 1.39 | G147: 90 | H147: 1.22 | J147: 41 | K147: 1.19 | M147: 87 | N147: 1.46 | P147: 101 | Q147: 1.31 | S147: 196 | T147: 1.5 | V147: 149 | W147: 1.51 | Y147: 76 | Z147: 1.29 | AB147: 80 | AC147: 1.07 | AE147: 94 | AF147: 1.25 | AH147: 133 | AI147: 1.61 | AK147: 103 | AL147: 1.45 | AN147: 55 | AO147: 1.63
C148: 여 | D148: 1127 | E148: 1.34 | G148: 70 | H148: 1.06 | J148: 38 | K148: 1.22 | M148: 61 | N148: 1.08 | P148: 98 | Q148: 1.25 | S148: 246 | T148: 1.85 | V148: 129 | W148: 1.42 | Y148: 63 | Z148: 0.94 | AB148: 87 | AC148: 1.11 | AE148: 92 | AF148: 1.31 | AH148: 112 | AI148: 1.42 | AK148: 85 | AL148: 1.38 | AN148: 46 | AO148: 1.62
B149: 46세 | C149: 계 | D149: 2262 | E149: 1.32 | F149: 101.96 | G149: 168 | H149: 1.2 | I149: 118.18 | J149: 80 | K149: 1.22 | L149: 128.57 | M149: 144 | N149: 1.24 | O149: 128.57 | P149: 204 | Q149: 1.31 | R149: 85.45 | S149: 399 | T149: 1.51 | U149: 85.58 | V149: 236 | W149: 1.25 | X149: 126.92 | Y149: 137 | Z149: 1.09 | AA149: 69.14 | AB149: 186 | AC149: 1.22 | AD149: 70.64 | AE149: 179 | AF149: 1.23 | AG149: 110.59 | AH149: 256 | AI149: 1.58 | AJ149: 130.63 | AK149: 170 | AL149: 1.29 | AM149: 104.82 | AN149: 103 | AO149: 1.66 | AP149: 119.15
C150: 남 | D150: 1142 | E150: 1.31 | G150: 91 | H150: 1.23 | J150: 45 | K150: 1.3 | M150: 81 | N150: 1.36 | P150: 94 | Q150: 1.22 | S150: 184 | T150: 1.41 | V150: 132 | W150: 1.34 | Y150: 56 | Z150: 0.95 | AB150: 77 | AC150: 1.03 | AE150: 94 | AF150: 1.25 | AH150: 145 | AI150: 1.75 | AK150: 87 | AL150: 1.23 | AN150: 56 | AO150: 1.66
C151: 여 | D151: 1120 | E151: 1.33 | G151: 77 | H151: 1.16 | J151: 35 | K151: 1.12 | M151: 63 | N151: 1.11 | P151: 110 | Q151: 1.41 | S151: 215 | T151: 1.61 | V151: 104 | W151: 1.15 | Y151: 81 | Z151: 1.21 | AB151: 109 | AC151: 1.39 | AE151: 85 | AF151: 1.21 | AH151: 111 | AI151: 1.41 | AK151: 83 | AL151: 1.35 | AN151: 47 | AO151: 1.66
B152: 47세 | C152: 계 | D152: 2564 | E152: 1.5 | F152: 97.84 | G152: 197 | H152: 1.41 | I152: 131.76 | J152: 95 | K152: 1.44 | L152: 102.13 | M152: 159 | N152: 1.37 | O152: 109.21 | P152: 227 | Q152: 1.46 | R152: 120.39 | S152: 486 | T152: 1.84 | U152: 72.34 | V152: 282 | W152: 1.49 | X152: 102.88 | Y152: 147 | Z152: 1.17 | AA152: 93.42 | AB152: 222 | AC152: 1.45 | AD152: 96.46 | AE152: 221 | AF152: 1.52 | AG152: 81.15 | AH152: 221 | AI152: 1.37 | AJ152: 108.49 | AK152: 203 | AL152: 1.53 | AM152: 91.51 | AN152: 104 | AO152: 1.67 | AP152: 153.66
C153: 남 | D153: 1268 | E153: 1.46 | G153: 112 | H153: 1.52 | J153: 48 | K153: 1.39 | M153: 83 | N153: 1.4 | P153: 124 | Q153: 1.6 | S153: 204 | T153: 1.56 | V153: 143 | W153: 1.45 | Y153: 71 | Z153: 1.21 | AB153: 109 | AC153: 1.46 | AE153: 99 | AF153: 1.31 | AH153: 115 | AI153: 1.39 | AK153: 97 | AL153: 1.37 | AN153: 63 | AO153: 1.87
C154: 여 | D154: 1296 | E154: 1.54 | G154: 85 | H154: 1.28 | J154: 47 | K154: 1.51 | M154: 76 | N154: 1.34 | P154: 103 | Q154: 1.32 | S154: 282 | T154: 2.12 | V154: 139 | W154: 1.54 | Y154: 76 | Z154: 1.14 | AB154: 113 | AC154: 1.44 | AE154: 122 | AF154: 1.74 | AH154: 106 | AI154: 1.34 | AK154: 106 | AL154: 1.73 | AN154: 41 | AO154: 1.45
B155: 48세 | C155: 계 | D155: 2636 | E155: 1.54 | F155: 106.26 | G155: 184 | H155: 1.31 | I155: 119.05 | J155: 100 | K155: 1.52 | L155: 132.56 | M155: 161 | N155: 1.39 | O155: 114.67 | P155: 238 | Q155: 1.53 | R155: 101.69 | S155: 495 | T155: 1.88 | U155: 84.7 | V155: 306 | W155: 1.62 | X155: 111.03 | Y155: 175 | Z155: 1.39 | AA155: 113.41 | AB155: 226 | AC155: 1.48 | AD155: 69.92 | AE155: 223 | AF155: 1.53 | AG155: 120.79 | AH155: 235 | AI155: 1.45 | AJ155: 113.64 | AK155: 204 | AL155: 1.54 | AM155: 155 | AN155: 89 | AO155: 1.43 | AP155: 128.21
C156: 남 | D156: 1358 | E156: 1.56 | G156: 100 | H156: 1.36 | J156: 57 | K156: 1.65 | M156: 86 | N156: 1.45 | P156: 120 | Q156: 1.55 | S156: 227 | T156: 1.74 | V156: 161 | W156: 1.64 | Y156: 93 | Z156: 1.58 | AB156: 93 | AC156: 1.25 | AE156: 122 | AF156: 1.62 | AH156: 125 | AI156: 1.51 | AK156: 124 | AL156: 1.75 | AN156: 50 | AO156: 1.48
C157: 여 | D157: 1278 | E157: 1.52 | G157: 84 | H157: 1.27 | J157: 43 | K157: 1.38 | M157: 75 | N157: 1.32 | P157: 118 | Q157: 1.51 | S157: 268 | T157: 2.01 | V157: 145 | W157: 1.6 | Y157: 82 | Z157: 1.23 | AB157: 133 | AC157: 1.69 | AE157: 101 | AF157: 1.44 | AH157: 110 | AI157: 1.39 | AK157: 80 | AL157: 1.3 | AN157: 39 | AO157: 1.38
B158: 49세 | C158: 계 | D158: 3095 | E158: 1.81 | F158: 103.48 | G158: 213 | H158: 1.52 | I158: 159.76 | J158: 106 | K158: 1.61 | L158: 171.79 | M158: 199 | N158: 1.71 | O158: 105.15 | P158: 296 | Q158: 1.9 | R158: 92.21 | S158: 557 | T158: 2.11 | U158: 77.39 | V158: 373 | W158: 1.97 | X158: 131.68 | Y158: 203 | Z158: 1.62 | AA158: 97.09 | AB158: 279 | AC158: 1.82 | AD158: 72.22 | AE158: 230 | AF158: 1.58 | AG158: 130 | AH158: 264 | AI158: 1.63 | AJ158: 82.07 | AK158: 247 | AL158: 1.87 | AM158: 137.5 | AN158: 128 | AO158: 2.06 | AP158: 113.33
C159: 남 | D159: 1574 | E159: 1.81 | G159: 131 | H159: 1.78 | J159: 67 | K159: 1.94 | M159: 102 | N159: 1.72 | P159: 142 | Q159: 1.84 | S159: 243 | T159: 1.86 | V159: 212 | W159: 2.16 | Y159: 100 | Z159: 1.7 | AB159: 117 | AC159: 1.57 | AE159: 130 | AF159: 1.73 | AH159: 119 | AI159: 1.44 | AK159: 143 | AL159: 2.02 | AN159: 68 | AO159: 2.01
C160: 여 | D160: 1521 | E160: 1.81 | G160: 82 | H160: 1.24 | J160: 39 | K160: 1.25 | M160: 97 | N160: 1.71 | P160: 154 | Q160: 1.97 | S160: 314 | T160: 2.36 | V160: 161 | W160: 1.78 | Y160: 103 | Z160: 1.54 | AB160: 162 | AC160: 2.06 | AE160: 100 | AF160: 1.42 | AH160: 145 | AI160: 1.84 | AK160: 104 | AL160: 1.69 | AN160: 60 | AO160: 2.12
B161: 50세 | C161: 계 | D161: 3147 | E161: 1.84 | F161: 98.3 | G161: 212 | H161: 1.51 | I161: 158.54 | J161: 128 | K161: 1.95 | L161: 113.33 | M161: 193 | N161: 1.66 | O161: 105.32 | P161: 332 | Q161: 2.14 | R161: 90.8 | S161: 589 | T161: 2.23 | U161: 75.82 | V161: 338 | W161: 1.79 | X161: 123.84 | Y161: 192 | Z161: 1.53 | AA161: 77.78 | AB161: 268 | AC161: 1.75 | AD161: 69.62 | AE161: 250 | AF161: 1.72 | AG161: 106.61 | AH161: 269 | AI161: 1.66 | AJ161: 96.35 | AK161: 263 | AL161: 1.99 | AM161: 113.82 | AN161: 113 | AO161: 1.82 | AP161: 156.82
C162: 남 | D162: 1560 | E162: 1.79 | G162: 130 | H162: 1.76 | J162: 68 | K162: 1.97 | M162: 99 | N162: 1.67 | P162: 158 | Q162: 2.04 | S162: 254 | T162: 1.94 | V162: 187 | W162: 1.9 | Y162: 84 | Z162: 1.43 | AB162: 110 | AC162: 1.48 | AE162: 129 | AF162: 1.71 | AH162: 132 | AI162: 1.6 | AK162: 140 | AL162: 1.98 | AN162: 69 | AO162: 2.04
C163: 여 | D163: 1587 | E163: 1.89 | G163: 82 | H163: 1.24 | J163: 60 | K163: 1.92 | M163: 94 | N163: 1.66 | P163: 174 | Q163: 2.23 | S163: 335 | T163: 2.51 | V163: 151 | W163: 1.67 | Y163: 108 | Z163: 1.62 | AB163: 158 | AC163: 2.01 | AE163: 121 | AF163: 1.72 | AH163: 137 | AI163: 1.74 | AK163: 123 | AL163: 2 | AN163: 44 | AO163: 1.55
B164: 51세 | C164: 계 | D164: 3161 | E164: 1.85 | F164: 102.37 | G164: 224 | H164: 1.6 | I164: 138.3 | J164: 137 | K164: 2.08 | L164: 144.64 | M164: 220 | N164: 1.9 | O164: 111.54 | P164: 290 | Q164: 1.87 | R164: 95.95 | S164: 620 | T164: 2.35 | U164: 85.63 | V164: 354 | W164: 1.87 | X164: 110.71 | Y164: 190 | Z164: 1.51 | AA164: 61.02 | AB164: 275 | AC164: 1.8 | AD164: 76.28 | AE164: 231 | AF164: 1.59 | AG164: 124.27 | AH164: 254 | AI164: 1.57 | AJ164: 82.73 | AK164: 249 | AL164: 1.88 | AM164: 173.63 | AN164: 117 | AO164: 1.88 | AP164: 129.41
C165: 남 | D165: 1599 | E165: 1.84 | G165: 130 | H165: 1.76 | J165: 81 | K165: 2.34 | M165: 116 | N165: 1.95 | P165: 142 | Q165: 1.84 | S165: 286 | T165: 2.19 | V165: 186 | W165: 1.89 | Y165: 72 | Z165: 1.23 | AB165: 119 | AC165: 1.6 | AE165: 128 | AF165: 1.7 | AH165: 115 | AI165: 1.39 | AK165: 158 | AL165: 2.23 | AN165: 66 | AO165: 1.96
C166: 여 | D166: 1562 | E166: 1.86 | G166: 94 | H166: 1.42 | J166: 56 | K166: 1.8 | M166: 104 | N166: 1.84 | P166: 148 | Q166: 1.89 | S166: 334 | T166: 2.51 | V166: 168 | W166: 1.86 | Y166: 118 | Z166: 1.77 | AB166: 156 | AC166: 1.99 | AE166: 103 | AF166: 1.47 | AH166: 139 | AI166: 1.76 | AK166: 91 | AL166: 1.48 | AN166: 51 | AO166: 1.8
B167: 52세 | C167: 계 | D167: 3501 | E167: 2.05 | F167: 99.49 | G167: 237 | H167: 1.69 | I167: 119.44 | J167: 127 | K167: 1.93 | L167: 122.81 | M167: 212 | N167: 1.83 | O167: 114.14 | P167: 339 | Q167: 2.18 | R167: 100.59 | S167: 669 | T167: 2.53 | U167: 82.29 | V167: 397 | W167: 2.1 | X167: 124.29 | Y167: 253 | Z167: 2.02 | AA167: 68.67 | AB167: 328 | AC167: 2.14 | AD167: 91.81 | AE167: 290 | AF167: 1.99 | AG167: 95.95 | AH167: 272 | AI167: 1.68 | AJ167: 109.23 | AK167: 248 | AL167: 1.88 | AM167: 129.63 | AN167: 129 | AO167: 2.08 | AP167: 81.69
C168: 남 | D168: 1746 | E168: 2.01 | G168: 129 | H168: 1.75 | J168: 70 | K168: 2.02 | M168: 113 | N168: 1.9 | P168: 170 | Q168: 2.2 | S168: 302 | T168: 2.31 | V168: 220 | W168: 2.24 | Y168: 103 | Z168: 1.75 | AB168: 157 | AC168: 2.11 | AE168: 142 | AF168: 1.89 | AH168: 142 | AI168: 1.72 | AK168: 140 | AL168: 1.98 | AN168: 58 | AO168: 1.72
C169: 여 | D169: 1755 | E169: 2.09 | G169: 108 | H169: 1.63 | J169: 57 | K169: 1.83 | M169: 99 | N169: 1.75 | P169: 169 | Q169: 2.16 | S169: 367 | T169: 2.75 | V169: 177 | W169: 1.96 | Y169: 150 | Z169: 2.25 | AB169: 171 | AC169: 2.18 | AE169: 148 | AF169: 2.11 | AH169: 130 | AI169: 1.65 | AK169: 108 | AL169: 1.76 | AN169: 71 | AO169: 2.51
B170: 53세 | C170: 계 | D170: 3457 | E170: 2.02 | F170: 107.5 | G170: 258 | H170: 1.84 | I170: 180.43 | J170: 132 | K170: 2.01 | L170: 123.73 | M170: 223 | N170: 1.92 | O170: 125.25 | P170: 345 | Q170: 2.22 | R170: 106.59 | S170: 636 | T170: 2.41 | U170: 109.9 | V170: 365 | W170: 1.93 | X170: 106.21 | Y170: 251 | Z170: 2 | AA170: 75.52 | AB170: 294 | AC170: 1.92 | AD170: 102.76 | AE170: 275 | AF170: 1.89 | AG170: 99.28 | AH170: 267 | AI170: 1.65 | AJ170: 81.63 | AK170: 286 | AL170: 2.16 | AM170: 95.89 | AN170: 125 | AO170: 2.01 | AP170: 150
C171: 남 | D171: 1791 | E171: 2.06 | G171: 166 | H171: 2.25 | J171: 73 | K171: 2.11 | M171: 124 | N171: 2.09 | P171: 178 | Q171: 2.3 | S171: 333 | T171: 2.55 | V171: 188 | W171: 1.91 | Y171: 108 | Z171: 1.84 | AB171: 149 | AC171: 2 | AE171: 137 | AF171: 1.82 | AH171: 120 | AI171: 1.45 | AK171: 140 | AL171: 1.98 | AN171: 75 | AO171: 2.22
C172: 여 | D172: 1666 | E172: 1.98 | G172: 92 | H172: 1.39 | J172: 59 | K172: 1.89 | M172: 99 | N172: 1.75 | P172: 167 | Q172: 2.14 | S172: 303 | T172: 2.27 | V172: 177 | W172: 1.96 | Y172: 143 | Z172: 2.14 | AB172: 145 | AC172: 1.85 | AE172: 138 | AF172: 1.97 | AH172: 147 | AI172: 1.86 | AK172: 146 | AL172: 2.38 | AN172: 50 | AO172: 1.76
B173: 54세 | C173: 계 | D173: 3736 | E173: 2.18 | F173: 102.82 | G173: 273 | H173: 1.95 | I173: 131.36 | J173: 146 | K173: 2.22 | L173: 124.62 | M173: 257 | N173: 2.21 | O173: 107.26 | P173: 357 | Q173: 2.3 | R173: 96.15 | S173: 634 | T173: 2.4 | U173: 87.57 | V173: 418 | W173: 2.21 | X173: 115.46 | Y173: 276 | Z173: 2.2 | AA173: 71.43 | AB173: 354 | AC173: 2.31 | AD173: 94.51 | AE173: 326 | AF173: 2.24 | AG173: 100 | AH173: 279 | AI173: 1.73 | AJ173: 112.98 | AK173: 296 | AL173: 2.24 | AM173: 120.9 | AN173: 120 | AO173: 1.93 | AP173: 140
C174: 남 | D174: 1894 | E174: 2.18 | G174: 155 | H174: 2.1 | J174: 81 | K174: 2.34 | M174: 133 | N174: 2.24 | P174: 175 | Q174: 2.26 | S174: 296 | T174: 2.26 | V174: 224 | W174: 2.28 | Y174: 115 | Z174: 1.96 | AB174: 172 | AC174: 2.31 | AE174: 163 | AF174: 2.16 | AH174: 148 | AI174: 1.79 | AK174: 162 | AL174: 2.29 | AN174: 70 | AO174: 2.07
C175: 여 | D175: 1842 | E175: 2.19 | G175: 118 | H175: 1.78 | J175: 65 | K175: 2.08 | M175: 124 | N175: 2.19 | P175: 182 | Q175: 2.33 | S175: 338 | T175: 2.54 | V175: 194 | W175: 2.14 | Y175: 161 | Z175: 2.41 | AB175: 182 | AC175: 2.32 | AE175: 163 | AF175: 2.32 | AH175: 131 | AI175: 1.66 | AK175: 134 | AL175: 2.18 | AN175: 50 | AO175: 1.76
B176: 55세 | C176: 계 | D176: 3428 | E176: 2 | F176: 104.29 | G176: 257 | H176: 1.84 | I176: 100.78 | J176: 129 | K176: 1.96 | L176: 115 | M176: 242 | N176: 2.08 | O176: 89.06 | P176: 308 | Q176: 1.98 | R176: 93.71 | S176: 587 | T176: 2.22 | U176: 116.61 | V176: 342 | W176: 1.81 | X176: 128 | Y176: 287 | Z176: 2.29 | AA176: 81.65 | AB176: 340 | AC176: 2.22 | AD176: 88.89 | AE176: 291 | AF176: 2 | AG176: 150.86 | AH176: 276 | AI176: 1.71 | AJ176: 95.74 | AK176: 263 | AL176: 1.99 | AM176: 94.81 | AN176: 106 | AO176: 1.71 | AP176: 103.85
C177: 남 | D177: 1750 | E177: 2.01 | G177: 129 | H177: 1.75 | J177: 69 | K177: 2 | M177: 114 | N177: 1.92 | P177: 149 | Q177: 1.93 | S177: 316 | T177: 2.42 | V177: 192 | W177: 1.95 | Y177: 129 | Z177: 2.2 | AB177: 160 | AC177: 2.15 | AE177: 175 | AF177: 2.32 | AH177: 135 | AI177: 1.63 | AK177: 128 | AL177: 1.81 | AN177: 54 | AO177: 1.6
C178: 여 | D178: 1678 | E178: 2 | G178: 128 | H178: 1.93 | J178: 60 | K178: 1.92 | M178: 128 | N178: 2.26 | P178: 159 | Q178: 2.03 | S178: 271 | T178: 2.03 | V178: 150 | W178: 1.66 | Y178: 158 | Z178: 2.37 | AB178: 180 | AC178: 2.29 | AE178: 116 | AF178: 1.65 | AH178: 141 | AI178: 1.79 | AK178: 135 | AL178: 2.2 | AN178: 52 | AO178: 1.83
B179: 56세 | C179: 계 | D179: 3235 | E179: 1.89 | F179: 102.19 | G179: 246 | H179: 1.76 | I179: 132.08 | J179: 116 | K179: 1.76 | L179: 107.14 | M179: 185 | N179: 1.59 | O179: 128.4 | P179: 300 | Q179: 1.93 | R179: 98.68 | S179: 558 | T179: 2.11 | U179: 99.29 | V179: 375 | W179: 1.99 | X179: 102.7 | Y179: 240 | Z179: 1.91 | AA179: 96.72 | AB179: 300 | AC179: 1.96 | AD179: 77.51 | AE179: 276 | AF179: 1.9 | AG179: 79.22 | AH179: 269 | AI179: 1.66 | AJ179: 97.79 | AK179: 258 | AL179: 1.95 | AM179: 141.12 | AN179: 112 | AO179: 1.8 | AP179: 111.32
C180: 남 | D180: 1635 | E180: 1.88 | G180: 140 | H180: 1.9 | J180: 60 | K180: 1.74 | M180: 104 | N180: 1.75 | P180: 149 | Q180: 1.93 | S180: 278 | T180: 2.13 | V180: 190 | W180: 1.93 | Y180: 118 | Z180: 2.01 | AB180: 131 | AC180: 1.76 | AE180: 122 | AF180: 1.62 | AH180: 133 | AI180: 1.61 | AK180: 151 | AL180: 2.13 | AN180: 59 | AO180: 1.75
C181: 여 | D181: 1600 | E181: 1.9 | G181: 106 | H181: 1.6 | J181: 56 | K181: 1.8 | M181: 81 | N181: 1.43 | P181: 151 | Q181: 1.93 | S181: 280 | T181: 2.1 | V181: 185 | W181: 2.04 | Y181: 122 | Z181: 1.83 | AB181: 169 | AC181: 2.15 | AE181: 154 | AF181: 2.19 | AH181: 136 | AI181: 1.72 | AK181: 107 | AL181: 1.74 | AN181: 53 | AO181: 1.87
B182: 57세 | C182: 계 | D182: 3104 | E182: 1.81 | F182: 106.38 | G182: 256 | H182: 1.83 | I182: 98.45 | J182: 112 | K182: 1.7 | L182: 138.3 | M182: 222 | N182: 1.91 | O182: 107.48 | P182: 288 | Q182: 1.85 | R182: 84.62 | S182: 497 | T182: 1.88 | U182: 110.59 | V182: 350 | W182: 1.85 | X182: 105.88 | Y182: 246 | Z182: 1.96 | AA182: 84.96 | AB182: 286 | AC182: 1.87 | AD182: 97.24 | AE182: 250 | AF182: 1.72 | AG182: 127.27 | AH182: 245 | AI182: 1.52 | AJ182: 88.46 | AK182: 251 | AL182: 1.9 | AM182: 136.79 | AN182: 101 | AO182: 1.63 | AP182: 188.57
C183: 남 | D183: 1600 | E183: 1.84 | G183: 127 | H183: 1.72 | J183: 65 | K183: 1.88 | M183: 115 | N183: 1.93 | P183: 132 | Q183: 1.71 | S183: 261 | T183: 2 | V183: 180 | W183: 1.83 | Y183: 113 | Z183: 1.92 | AB183: 141 | AC183: 1.89 | AE183: 140 | AF183: 1.86 | AH183: 115 | AI183: 1.39 | AK183: 145 | AL183: 2.05 | AN183: 66 | AO183: 1.96
C184: 여 | D184: 1504 | E184: 1.79 | G184: 129 | H184: 1.95 | J184: 47 | K184: 1.51 | M184: 107 | N184: 1.89 | P184: 156 | Q184: 2 | S184: 236 | T184: 1.77 | V184: 170 | W184: 1.88 | Y184: 133 | Z184: 1.99 | AB184: 145 | AC184: 1.85 | AE184: 110 | AF184: 1.57 | AH184: 130 | AI184: 1.65 | AK184: 106 | AL184: 1.73 | AN184: 35 | AO184: 1.24
B185: 58세 | C185: 계 | D185: 3252 | E185: 1.9 | F185: 100.86 | G185: 301 | H185: 2.15 | I185: 102.01 | J185: 129 | K185: 1.96 | L185: 108.06 | M185: 211 | N185: 1.82 | O185: 111 | P185: 275 | Q185: 1.77 | R185: 93.66 | S185: 512 | T185: 1.94 | U185: 107.29 | V185: 381 | W185: 2.02 | X185: 93.4 | Y185: 236 | Z185: 1.88 | AA185: 90.32 | AB185: 323 | AC185: 2.11 | AD185: 90 | AE185: 294 | AF185: 2.02 | AG185: 97.32 | AH185: 258 | AI185: 1.6 | AJ185: 113.22 | AK185: 233 | AL185: 1.76 | AM185: 108.04 | AN185: 99 | AO185: 1.59 | AP185: 115.22
C186: 남 | D186: 1633 | E186: 1.88 | G186: 152 | H186: 2.06 | J186: 67 | K186: 1.94 | M186: 111 | N186: 1.87 | P186: 133 | Q186: 1.72 | S186: 265 | T186: 2.03 | V186: 184 | W186: 1.87 | Y186: 112 | Z186: 1.91 | AB186: 153 | AC186: 2.05 | AE186: 145 | AF186: 1.93 | AH186: 137 | AI186: 1.66 | AK186: 121 | AL186: 1.71 | AN186: 53 | AO186: 1.57
C187: 여 | D187: 1619 | E187: 1.93 | G187: 149 | H187: 2.25 | J187: 62 | K187: 1.99 | M187: 100 | N187: 1.77 | P187: 142 | Q187: 1.82 | S187: 247 | T187: 1.85 | V187: 197 | W187: 2.18 | Y187: 124 | Z187: 1.86 | AB187: 170 | AC187: 2.17 | AE187: 149 | AF187: 2.12 | AH187: 121 | AI187: 1.53 | AK187: 112 | AL187: 1.82 | AN187: 46 | AO187: 1.62
B188: 59세 | C188: 계 | D188: 2707 | E188: 1.58 | F188: 100.82 | G188: 219 | H188: 1.56 | I188: 72.44 | J188: 99 | K188: 1.51 | L188: 147.5 | M188: 207 | N188: 1.78 | O188: 113.4 | P188: 250 | Q188: 1.61 | R188: 110.08 | S188: 391 | T188: 1.48 | U188: 98.48 | V188: 336 | W188: 1.78 | X188: 107.41 | Y188: 198 | Z188: 1.58 | AA188: 100 | AB188: 276 | AC188: 1.8 | AD188: 65.27 | AE188: 225 | AF188: 1.55 | AG188: 122.77 | AH188: 183 | AI188: 1.13 | AJ188: 96.77 | AK188: 219 | AL188: 1.66 | AM188: 128.13 | AN188: 104 | AO188: 1.67 | AP188: 108
C189: 남 | D189: 1359 | E189: 1.56 | G189: 92 | H189: 1.25 | J189: 59 | K189: 1.71 | M189: 110 | N189: 1.85 | P189: 131 | Q189: 1.7 | S189: 194 | T189: 1.48 | V189: 174 | W189: 1.77 | Y189: 99 | Z189: 1.69 | AB189: 109 | AC189: 1.46 | AE189: 124 | AF189: 1.65 | AH189: 90 | AI189: 1.09 | AK189: 123 | AL189: 1.74 | AN189: 54 | AO189: 1.6
C190: 여 | D190: 1348 | E190: 1.6 | G190: 127 | H190: 1.92 | J190: 40 | K190: 1.28 | M190: 97 | N190: 1.71 | P190: 119 | Q190: 1.52 | S190: 197 | T190: 1.48 | V190: 162 | W190: 1.79 | Y190: 99 | Z190: 1.48 | AB190: 167 | AC190: 2.13 | AE190: 101 | AF190: 1.44 | AH190: 93 | AI190: 1.18 | AK190: 96 | AL190: 1.56 | AN190: 50 | AO190: 1.76
B191: 60세 | C191: 계 | D191: 3301 | E191: 1.93 | F191: 100.55 | G191: 283 | H191: 2.02 | I191: 109.63 | J191: 123 | K191: 1.87 | L191: 89.23 | M191: 251 | N191: 2.16 | O191: 110.92 | P191: 322 | Q191: 2.07 | R191: 80.9 | S191: 478 | T191: 1.81 | U191: 99.17 | V191: 379 | W191: 2.01 | X191: 86.7 | Y191: 266 | Z191: 2.12 | AA191: 97.04 | AB191: 356 | AC191: 2.33 | AD191: 96.69 | AE191: 255 | AF191: 1.75 | AG191: 116.1 | AH191: 240 | AI191: 1.48 | AJ191: 106.9 | AK191: 244 | AL191: 1.84 | AM191: 144 | AN191: 104 | AO191: 1.67 | AP191: 85.71
C192: 남 | D192: 1655 | E192: 1.9 | G192: 148 | H192: 2.01 | J192: 58 | K192: 1.68 | M192: 132 | N192: 2.22 | P192: 144 | Q192: 1.86 | S192: 238 | T192: 1.82 | V192: 176 | W192: 1.79 | Y192: 131 | Z192: 2.23 | AB192: 175 | AC192: 2.35 | AE192: 137 | AF192: 1.82 | AH192: 124 | AI192: 1.5 | AK192: 144 | AL192: 2.03 | AN192: 48 | AO192: 1.42
C193: 여 | D193: 1646 | E193: 1.96 | G193: 135 | H193: 2.04 | J193: 65 | K193: 2.08 | M193: 119 | N193: 2.1 | P193: 178 | Q193: 2.28 | S193: 240 | T193: 1.8 | V193: 203 | W193: 2.24 | Y193: 135 | Z193: 2.02 | AB193: 181 | AC193: 2.31 | AE193: 118 | AF193: 1.68 | AH193: 116 | AI193: 1.47 | AK193: 100 | AL193: 1.63 | AN193: 56 | AO193: 1.98
B194: 61세 | C194: 계 | D194: 3170 | E194: 1.85 | F194: 99.5 | G194: 284 | H194: 2.03 | I194: 97.22 | J194: 139 | K194: 2.11 | L194: 90.41 | M194: 248 | N194: 2.14 | O194: 110.17 | P194: 314 | Q194: 2.02 | R194: 98.73 | S194: 429 | T194: 1.63 | U194: 107.25 | V194: 322 | W194: 1.7 | X194: 101.25 | Y194: 247 | Z194: 1.97 | AA194: 105.83 | AB194: 332 | AC194: 2.17 | AD194: 85.47 | AE194: 266 | AF194: 1.83 | AG194: 91.37 | AH194: 254 | AI194: 1.57 | AJ194: 95.38 | AK194: 230 | AL194: 1.74 | AM194: 111.01 | AN194: 105 | AO194: 1.69 | AP194: 101.92
C195: 남 | D195: 1581 | E195: 1.82 | G195: 140 | H195: 1.9 | J195: 66 | K195: 1.91 | M195: 130 | N195: 2.19 | P195: 156 | Q195: 2.02 | S195: 222 | T195: 1.7 | V195: 162 | W195: 1.65 | Y195: 127 | Z195: 2.16 | AB195: 153 | AC195: 2.05 | AE195: 127 | AF195: 1.69 | AH195: 124 | AI195: 1.5 | AK195: 121 | AL195: 1.71 | AN195: 53 | AO195: 1.57
C196: 여 | D196: 1589 | E196: 1.89 | G196: 144 | H196: 2.17 | J196: 73 | K196: 2.34 | M196: 118 | N196: 2.08 | P196: 158 | Q196: 2.02 | S196: 207 | T196: 1.55 | V196: 160 | W196: 1.77 | Y196: 120 | Z196: 1.8 | AB196: 179 | AC196: 2.28 | AE196: 139 | AF196: 1.98 | AH196: 130 | AI196: 1.65 | AK196: 109 | AL196: 1.77 | AN196: 52 | AO196: 1.83
B197: 62세 | C197: 계 | D197: 3749 | E197: 2.19 | F197: 98.36 | G197: 364 | H197: 2.6 | I197: 98.91 | J197: 160 | K197: 2.43 | L197: 125.35 | M197: 304 | N197: 2.62 | O197: 68.89 | P197: 342 | Q197: 2.2 | R197: 86.89 | S197: 478 | T197: 1.81 | U197: 118.26 | V197: 428 | W197: 2.27 | X197: 102.84 | Y197: 274 | Z197: 2.18 | AA197: 95.71 | AB197: 407 | AC197: 2.66 | AD197: 98.54 | AE197: 331 | AF197: 2.27 | AG197: 101.83 | AH197: 286 | AI197: 1.77 | AJ197: 108.76 | AK197: 250 | AL197: 1.89 | AM197: 96.85 | AN197: 125 | AO197: 2.01 | AP197: 78.57
C198: 남 | D198: 1859 | E198: 2.14 | G198: 181 | H198: 2.46 | J198: 89 | K198: 2.57 | M198: 124 | N198: 2.09 | P198: 159 | Q198: 2.06 | S198: 259 | T198: 1.98 | V198: 217 | W198: 2.21 | Y198: 134 | Z198: 2.28 | AB198: 202 | AC198: 2.71 | AE198: 167 | AF198: 2.22 | AH198: 149 | AI198: 1.8 | AK198: 123 | AL198: 1.74 | AN198: 55 | AO198: 1.63
C199: 여 | D199: 1890 | E199: 2.25 | G199: 183 | H199: 2.76 | J199: 71 | K199: 2.28 | M199: 180 | N199: 3.18 | P199: 183 | Q199: 2.34 | S199: 219 | T199: 1.64 | V199: 211 | W199: 2.33 | Y199: 140 | Z199: 2.1 | AB199: 205 | AC199: 2.61 | AE199: 164 | AF199: 2.34 | AH199: 137 | AI199: 1.74 | AK199: 127 | AL199: 2.07 | AN199: 70 | AO199: 2.47
B200: 63세 | C200: 계 | D200: 3232 | E200: 1.89 | F200: 95.29 | G200: 311 | H200: 2.22 | I200: 119.01 | J200: 164 | K200: 2.49 | L200: 97.59 | M200: 281 | N200: 2.42 | O200: 87.33 | P200: 296 | Q200: 1.9 | R200: 73.1 | S200: 399 | T200: 1.51 | U200: 114.52 | V200: 374 | W200: 1.98 | X200: 102.16 | Y200: 247 | Z200: 1.97 | AA200: 70.34 | AB200: 357 | AC200: 2.33 | AD200: 89.89 | AE200: 243 | AF200: 1.67 | AG200: 95.97 | AH200: 252 | AI200: 1.56 | AJ200: 93.85 | AK200: 213 | AL200: 1.61 | AM200: 90.18 | AN200: 95 | AO200: 1.53 | AP200: 143.59
C201: 남 | D201: 1577 | E201: 1.81 | G201: 169 | H201: 2.29 | J201: 81 | K201: 2.34 | M201: 131 | N201: 2.2 | P201: 125 | Q201: 1.62 | S201: 213 | T201: 1.63 | V201: 189 | W201: 1.92 | Y201: 102 | Z201: 1.74 | AB201: 169 | AC201: 2.27 | AE201: 119 | AF201: 1.58 | AH201: 122 | AI201: 1.48 | AK201: 101 | AL201: 1.43 | AN201: 56 | AO201: 1.66
C202: 여 | D202: 1655 | E202: 1.97 | G202: 142 | H202: 2.14 | J202: 83 | K202: 2.66 | M202: 150 | N202: 2.65 | P202: 171 | Q202: 2.19 | S202: 186 | T202: 1.4 | V202: 185 | W202: 2.04 | Y202: 145 | Z202: 2.17 | AB202: 188 | AC202: 2.4 | AE202: 124 | AF202: 1.77 | AH202: 130 | AI202: 1.65 | AK202: 112 | AL202: 1.82 | AN202: 39 | AO202: 1.38
... 141 more rows

Sheet 인구 및 세대현황(대전광역시)
B2: 인구 및 세대현황
B3: 행정기관: | C3: 대전광역시
B4: 작성기준: | C4: 2023.05 현재 | H4: 출력일자 : 2023.06.01 | L4: (단위 : 명)
B5: 행정기관 | D5: 인 구 수 | G5: 구 성 비 | J5: 성비 | K5: 세대수 | L5: 세대당인구
D6: 계 | E6: 남 | F6: 여 | G6: 계 | H6: 남 | I6: 여
B7: 대전광역시 | D7: 1445221 | E7: 720874 | F7: 724347 | G7: 100 | H7: 49.88 | I7: 50.12 | J7: 99.52 | K7: 678666 | L7: 2.13
B8: 대덕구 | D8: 171021 | E8: 86991 | F8: 84030 | G8: 11.83 | H8: 6.02 | I8: 5.81 | J8: 103.52 | K8: 80268 | L8: 2.13
B9: 동구 | D9: 219137 | E9: 110400 | F9: 108737 | G9: 15.16 | H9: 7.64 | I9: 7.52 | J9: 101.53 | K9: 109196 | L9: 2.01
B10: 중구 | D10: 225267 | E10: 110699 | F10: 114568 | G10: 15.59 | H10: 7.66 | I10: 7.93 | J10: 96.62 | K10: 107476 | L10: 2.1
B11: 서구 | D11: 468048 | E11: 229725 | F11: 238323 | G11: 32.39 | H11: 15.9 | I11: 16.49 | J11: 96.39 | K11: 217627 | L11: 2.15
B12: 유성구 | D12: 361748 | E12: 183059 | F12: 178689 | G12: 25.03 | H12: 12.67 | I12: 12.36 | J12: 102.45 | K12: 164099 | L12: 2.2
